Workbook

Sheet (1) Manual de operação

Sheet (2) Premissas
B2: 2. Premissas | AG2: =SUM(AG3:AG1048576) -> 
D5: Premissas
B8: 2.1 Conversores de unidades
C9: Conversão de Energia | D9: joule | E9: kilowatt-hora | F9: Caloria (kcal IT) | G9: BTU (IT)
C10: 1 J | D10: 1 | E10: 2.77778e-07 | F10: 0.0002388459 | G10: 0.0009478171
C11: 1 kWh | D11: 3600000 | E11: 1 | F11: 859.8452279 | G11: 3412.141633
C12: 1 kcal (IT) | D12: 4186.8 | E12: 0.001163 | F12: 1 | G12: 3.968320719
C13: 1 BTU (IT) | D13: 1055.055853 | E13: 0.0002930711 | F13: 0.2519957611 | G13: 1
B15: 2.2 Premissas adicionais | F15: Valores | G15: Unidade
E16: Fator de coprodução de O2 por eletrólise | F16: 8 | G16: kg O2/kg H2
E17: Densidade do O2 | F17: =0.6998*293.15/273.15 -> 0.7510392458 | G17: kg/m3
B19: 2.3 Lista de combustíveis
C20: Combustível | D20: Unidade comercial (S.I.) | E20: Densidade (kg/m3) | F20: Poder calorífico inferior (MJ/S.I.) | G20: Fator de emissão (ton CO2eq/TJ)
C21: H2 | D21: kg | E21: 0.0837520938 | F21: 119.88 | G21: 0
C22: Gás Natural | D22: m3 | E22: 0.74 | F22: 36.84384 | G22: 76.85
C23: Carvão | D23: kg | E23: n/a | F23: 26.7 | G23: 98.975
C24: Óleo combustível | D24: m3 | E24: 1000 | F24: 40151.412 | G24: 89.87
C25: Coque de petróleo | D25: kg | E25: 1040 | F25: 35.127252 | G25: 97.896
C26: Outro
AG70: =#REF!-#REF! -> 

Sheet (3) Eletrolisadores
B2: 3. Eletrolisadores
C4: Modelo | D4: Fabricante | E4: Tecnologia | F4: Pressão de saída [bar] | G4: Potência [kW] | H4: Capacidade de produção [kg/h] | I4: Consumo de energia [kWh/kgH2] | J4: Capacidade específica [Nm3/h/kW] | K4: Capacidade específica [kg/h/kW] | L4: Consumo de água [L/kg H2]
C5: (20 MW) HyLYZER® -4.000-30 | D5: Cummins | E5: PEM | F5: 30 | G5: 20000 | H5: 330.8 | I5: 51 | J5: 0.2 | K5: 0.01654 | L5: 16.9286578
C6: (5 MW) HyLYZER® -1.000-30 | D6: Cummins | E6: PEM | F6: 30 | G6: 5000 | H6: 82.7 | I6: 51.99516324 | J6: 0.2 | K6: 0.01654 | L6: 16.9286578
C7: (2.5 MW) HyLYZER® -500-30 | D7: Cummins | E7: PEM | F7: 30 | G7: 2500 | H7: 41.35 | I7: 61.66868198 | J7: 0.2 | K7: 0.01654 | L7: 16.9286578
C8: (1.25 MW) SiLYZER 200 | D8: Siemens | E8: PEM | F8: 35 | G8: 1250 | H8: 18.6075 | I8: 62 | J8: 0.18 | K8: 0.014886 | L8: 12.09189843
C9: (1.25 MW) SiLYZER 300 | D9: Siemens | E9: PEM | F9: 35 | G9: 1250 | H9: 18.6075 | I9: 62 | J9: 0.18 | K9: 0.014886 | L9: 10
C10: (0.5 MW) HySTAT® - 100 | D10: Cummins | E10: ALK | F10: 10 | G10: 500 | H10: 8.27 | I10: 57.5 | J10: 0.2 | K10: 0.01654 | L10: 15
C11: (0.45 MW) HyProvide - A90 | D11: Green Hydrogen | E11: ALK | F11: 35 | G11: 450 | H11: 8.1 | I11: 53.6 | J11: 0.2 | K11: 0.01654 | L11: 10.88270859
C12: (19.4 MW) Nel A3880 | D12: Nel Hydrogen | E12: ALK | F12: 1-200 | G12: 19400 | H12: 320.876 | I12: 53.20435308 | J12: 0.2 | K12: 0.01654 | L12: 10.88270859
C13: (20 MW) Nel M4000 | D13: Nel Hydrogen | E13: PEM | F13: 30 | G13: 20000 | H13: 330.8 | I13: 54.77629988 | J13: 0.2 | K13: 0.01654 | L13: 10.88270859
C14: (2.07 MW) HGAS3SP | D14: ITM Power | E14: PEM | F14: 30 | G14: 2070 | H14: 36 | I14: 57.5 | J14: 0.2 | K14: 0.0174 | L14: 25
C15: (0.05 MW) HyPEM | D15: NEA | E15: PEM | F15: 30 | G15: 50 | H15: 0.8988 | I15: 55.62972853 | J15: 0.21463344 | K15: 0.017976 | L15: 10
C16: (5 MW) HyPEM | D16: NEA | E16: PEM | F16: 30 | G16: 5000 | H16: 89.88 | I16: 55.62972853 | J16: 0.21463344 | K16: 0.017976 | L16: 10
C17: (1.2 MW) HyPEM | D17: NEA | E17: PEM | F17: 30 | G17: 1200 | H17: 17.9 | I17: 67.03910615 | J17: 0.178105 | K17: 0.01491666667 | L17: 18.99441341
C18: (110 MW) Elyzer | D18: Siemens | E18: PEM | F18: 30 | G18: 110000 | H18: 2000 | I18: 55 | J18: 0.2170909091 | K18: 0.01818181818 | L18: 10

Sheet (4) Entrada de dados
B2: 4. Entradas | AG2: =SUM(AG3:AG1048576) -> 0
D5: Conjecturas: Produção de Hidrogênio Verde
C7: Código de Cores
C8: Informativo
C9: Dados de entrada
C13: 4.1 Diagnóstico e análise preliminar | F13: Valor | G13: Unidade | H13: Descrição
E14: Combustível ou fonte fóssil | F14: Gás Natural | H14: Selecionar o combustível fóssil a ser substituído dentro da lista. Caso deseje utilizar outro combustível, a unidade comercial (m3 ou kg), o equivalente energético (MJ/unidade comercial) e o fator de emissão (ton CO2eq/TJ) da fonte devem ser fornecidos nos campos abaixo
E15: ="Consumo anual de "&F14 -> Consumo anual de Gás Natural | F15: 10000000 | G15: =INDEX('(2) Premissas'!D21:D26,MATCH('(4) Entrada de dados'!F14,'(2) Premissas'!C21:C26,0)) -> m3 | H15: Definir o consumo total anual de combustível fóssil sendo utilizado em um processo, conforme a unidade comercial indicada ao lado
E16: Equivalente energético | F16: =INDEX('(2) Premissas'!F21:F26,MATCH('(4) Entrada de dados'!F14,'(2) Premissas'!C21:C26,0)) -> 36.84384 | G16: ="MJ/"&Unidade_fonte_substituida -> MJ/m3 | H16: Poder calorífico do combustível selecionado (captado na lista de combustíveis), a ser utilizado na simulação
E17: Fator de emissão | F17: =INDEX('(2) Premissas'!G21:G26,MATCH('(4) Entrada de dados'!F14,'(2) Premissas'!C21:C26,0)) -> 76.85 | G17: tonCO2eq/TJ | H17: Fator de emissão do combustível selecionado (captado na lista de combustíveis), a ser utilizado na simulação
E18: ="Consumo de energia associado ao uso de "&F14 -> Consumo de energia associado ao uso de Gás Natural | F18: =Consumo_FonteFossil*F16*10^-6 -> 368.4384 | G18: TJ/ano | H18: Resultado da energia consumida, associado ao combustível selecionado
E19: ="Emissões de CO2 associadas ao uso de "&F14 -> Emissões de CO2 associadas ao uso de Gás Natural | F19: =F18*fator_emissao_fonte_substituida -> 28314.49104 | G19: ton CO2eq/ano | H19: Resultado das emissões de CO2 que o processo proporciona
E20: Substituição desejada da fonte fóssil | F20: 0.5 | G20: (-) | H20: Definir o quanto da energia consumida atualmente se deseja ou poder ser substituído por H2
E21: ="A substituição reduzirá o consumo de "&F14&" em" -> A substituição reduzirá o consumo de Gás Natural em | F21: =F20*F18 -> 184.2192 | G21: TJ/ano | H21: Resultado de quanto da energia sera substituída pelo uso de H2
E22: As emissões evitadas, segundo a substituição, seriam de | F22: =F21*fator_emissao_fonte_substituida -> 14157.24552 | G22: ton CO2eq/ano | H22: Resultado da redução de emissões esperada ao deixar de utilizar a fonte fóssil tradicional
E23: Uso de H2 sustentável para promover a substituição | F23: =F21/(PCI_H2/10^3) -> 1536.696697 | G23: ton H2/ano | H23: Resultado da quantidade de H2 sustentável seria necessário para realizar a substituição
E24: Capacidade de eletrólise sugerida para atender a substituição | F24: =F23*58/365/24 -> 10.17447585 | G24: MW | H24: Sugestão da capacidade instalada de eletrólise para se iniciar a avaliação. Considera-se o uso de 100% da capacidade de um eletrolisador, com uma eficiência de 58 kWh/kg. Esse valor pode ser utilizado como referência para a seleção do eletrolisador do projeto.
C26: 4.2 Preços e custos de insumos | F26: Valor | G26: Unidade | H26: Descrição
E27: Moeda | F27: BRL | H27: Moeda adotada para as entradas de preços e custos
E28: ="Custo do "&F14&"" -> Custo do Gás Natural | F28: 4 | G28: =Moeda&"/"&Unidade_fonte_substituida -> BRL/m3 | H28: Custo da fonte fóssil atualmente utilizada, relacionado ao ganho virtual de receita ao se evitar o uso da fonte fóssil, devido ao uso do H2 como substituto
E29: Custo da água consumida pelo eletrolisador | F29: 6 | G29: =Moeda&"/m3" -> BRL/m3 | H29: Custo associado ao consumo específico de H2O para o eletrolisador produzir H2 e O2
E30: Preço de oportunidade para o O2 | F30: 0 | G30: =Moeda&"/m3" -> BRL/m3 | H30: Preço de ganho de receita pelo O2 por meios comerciais ou outras oportunidades consideradas pelo projetista (redução de compra de matéria-prima, redução de consumo de combustível recorrendo à queima com atmosfera enriquecida)
E31: Custo da energia elétrica | F31: 240 | G31: =Moeda&"/MWh" -> BRL/MWh | H31: Custo associado a energia elétrica acessível à fábrica
E32: Preço do crédito de carbono | F32: 0 | G32: =Moeda&"/ton CO2" -> BRL/ton CO2 | H32: Preço representativo do crédito de carbono, acessível em mercados regulados ou voluntários
C34: 4.3 Condições operacionais do projeto | F34: Valor | G34: Unidade | H34: Descrição
E35: Fator Operacional | F35: 0.9 | G35: (-) | H35: Expectativa de operação do projeto, aplicável sobre o fator de capacidade do eletrolisador e a operação da fábrica
E36: Total de horas trabalhadas em um ano | F36: 8760 | G36: h | H36: Total de horas em que a operação ocorre em 1 ano
E37: Distribuição do investimento | F37: 0.8 | G37: no ano 0 | H37: Inserir o percentual do investimento (CAPEX) que será aportado no 1o ano de investimento
F38: 0.2 | G38: no ano 1 | H38: Inserir o percentual do investimento (CAPEX) que será aportado no 20 ano de investimento
F39: 0 | G39: no ano 2 | H39: Inserir o percentual do investimento (CAPEX) que será aportado no 3o ano de investimento
F40: 0 | G40: no ano 3 | H40: Inserir o percentual do investimento (CAPEX) que será aportado no 4o ano de investimento
F41: 0 | G41: no ano 4 | H41: Inserir o percentual do investimento (CAPEX) que será aportado no 5o ano de investimento
E42: Soma da distribuição | F42: =SUM(F37:F41) -> 1 | G42: =IF(F42 = 100%,"(-)","REVISAR DISTRIBUIÇÃO") -> (-) | H42: Atentar para a distribuição compor 100%. Se diferente, revisar a distribuição
E43: Período de investimeto | F43: =COUNTIF(F37:F41,">0") -> 2 | G43: anos | H43: Este campo determina o número de anos para implementação do investimento, e o ano a partir do qual se tem a operação do projeto
E44: Taxa de Desconto | F44: 0.1 | G44: a.a. | H44: Taxa de desconto real aplicável sobre os montantes financeiros incidentes no fluxo de caixa
C46: 4.4 Seção de eletrolisadores | H46: Descrição
E47: Custo unitário do eletrolisador por unidade de potência instalada | F47: 6000 | G47: =Moeda&"/kW" -> BRL/kW | H47: Custo unitário do eletrolisador, por unidade de potência instalada do eletrolisador.
E48: Taxa de degradação do eletrolisador | F48: 0.01 | G48: a.a. | H48: Redução da capacidade do eletrolisador de produzir H2, utilizando-se do mesmo consumo de energia elétrica
C50: 4.5 Seleção de eletrolisadores - utilizar lista existente de eletrolisadores ou introduzir um eletrolisador com suas especificações técnicas | O50: Valores anuais
C51: Qtd | D51: Modelo | E51: Fabricante | F51: Tecnologia | G51: Pressão de saída [bar] | H51: Potência [kW] | I51: Capacidade de produção [kg/h] | J51: Consumo de energia [kWh/kgH2] | K51: Capacidade específica [Nm3/h/kW] | L51: Capacidade específica [kg/h/kW] | M51: Consumo de água [L/kg H2] | N51: Custo do eletrolisador | O51: Produção H2 [ton/ano] | P51: Produção O2 [ton/ano] | Q51: Consumo água [m3/ano] | R51: Consumo de energia elétrica [MWh/ano] | S51: Descrição
C52: 1 | D52: (5 MW) HyPEM | E52: =VLOOKUP($D$52,'(3) Eletrolisadores'!$C$4:$L$18,(COUNTA($D$52:D52)+1),0) -> NEA | F52: =VLOOKUP($D$52,'(3) Eletrolisadores'!$C$4:$L$18,(COUNTA($D$52:E52)+1),0) -> PEM | G52: =VLOOKUP($D$52,'(3) Eletrolisadores'!$C$4:$L$18,(COUNTA($D$52:F52)+1),0) -> 30 | H52: =VLOOKUP($D$52,'(3) Eletrolisadores'!$C$4:$L$18,(COUNTA($D$52:G52)+1),0) -> 5000 | I52: =VLOOKUP($D$52,'(3) Eletrolisadores'!$C$4:$L$18,(COUNTA($D$52:H52)+1),0) -> 89.88 | J52: =VLOOKUP($D$52,'(3) Eletrolisadores'!$C$4:$L$18,(COUNTA($D$52:I52)+1),0) -> 55.62972853 | K52: =VLOOKUP($D$52,'(3) Eletrolisadores'!$C$4:$L$18,(COUNTA($D$52:J52)+1),0) -> 0.21463344 | L52: =VLOOKUP($D$52,'(3) Eletrolisadores'!$C$4:$L$18,(COUNTA($D$52:K52)+1),0) -> 0.017976 | M52: =VLOOKUP($D$52,'(3) Eletrolisadores'!$C$4:$L$18,(COUNTA($D$52:L52)+1),0) -> 10 | N52: =Custo.Uni_ELET*H52*C52 -> 30000000 | O52: =I52*TDT*Fator_Operacional/10^3*C52 -> 708.61392 | P52: =I52*O2_kg_por_H2_kg*TDT*Fator_Operacional/10^3*C52 -> 5668.91136 | Q52: =-M52*I52*TDT*Fator_Operacional/10^3*C52 -> -7086.1392 | R52: =-J52*I52*TDT*Fator_Operacional/10^3*C52 -> -39420 | S52: Selecione um eletrolisador na lista, bem como a quantidade desejada.
C53: 0 | D53: (20 MW) HyLYZER® -4.000-30 | E53: =VLOOKUP($D$53,'(3) Eletrolisadores'!$C$4:$L$18,(COUNTA($D$53:D53)+1),0) -> Cummins | F53: =VLOOKUP($D$53,'(3) Eletrolisadores'!$C$4:$L$18,(COUNTA($D$53:E53)+1),0) -> PEM | G53: =VLOOKUP($D$53,'(3) Eletrolisadores'!$C$4:$L$18,(COUNTA($D$53:F53)+1),0) -> 30 | H53: =VLOOKUP($D$53,'(3) Eletrolisadores'!$C$4:$L$18,(COUNTA($D$53:G53)+1),0) -> 20000 | I53: =VLOOKUP($D$53,'(3) Eletrolisadores'!$C$4:$L$18,(COUNTA($D$53:H53)+1),0) -> 330.8 | J53: =VLOOKUP($D$53,'(3) Eletrolisadores'!$C$4:$L$18,(COUNTA($D$53:I53)+1),0) -> 51 | K53: =VLOOKUP($D$53,'(3) Eletrolisadores'!$C$4:$L$18,(COUNTA($D$53:J53)+1),0) -> 0.2 | L53: =VLOOKUP($D$53,'(3) Eletrolisadores'!$C$4:$L$18,(COUNTA($D$53:K53)+1),0) -> 0.01654 | M53: =VLOOKUP($D$53,'(3) Eletrolisadores'!$C$4:$L$18,(COUNTA($D$53:L53)+1),0) -> 16.9286578 | N53: =Custo.Uni_ELET*H53*C53 -> 0 | O53: =I53*TDT*Fator_Operacional/10^3*C53 -> 0 | P53: =I53*O2_kg_por_H2_kg*TDT*Fator_Operacional/10^3*C53 -> 0 | Q53: =-M53*I53*TDT*Fator_Operacional/10^3*C53 -> 0 | R53: =-J53*I53*TDT*Fator_Operacional/10^3*C53 -> 0 | S53: Selecione um eletrolisador na lista, bem como a quantidade desejada.
C54: 0 | D54: Outro | E54: AB | F54: ALK | G54: 30 | H54: 10000 | I54: =H54/J54 -> 192.3076923 | J54: 52 | K54: =I54/Densidade_H2/H54 -> 0.2296153846 | L54: =I54/H54 -> 0.01923076923 | M54: 15 | N54: =Custo.Uni_ELET*H54*C54 -> 0 | O54: =I54*TDT*Fator_Operacional/10^3*C54 -> 0 | P54: =I54*O2_kg_por_H2_kg*TDT*Fator_Operacional/10^3*C54 -> 0 | Q54: =-M54*I54*TDT*Fator_Operacional/10^3*C54 -> 0 | R54: =-J54*I54*TDT*Fator_Operacional/10^3*C54 -> 0 | S54: Este espaço permite ao usuário considerar um eletrolisador ausente na lista sugerida. Os espaços com fundo cinza destacam valores introduzidos na simulação, portanto devem ser preenchidos
G55: Sumário do sistema de eletrólise | H55: =SUMPRODUCT(H52:H54,C52:C54) -> 5000 | I55: =SUMPRODUCT(I52:I54,C52:C54) -> 89.88 | J55: =SUMPRODUCT(I52:I54,J52:J54,C52:C54)/SUMPRODUCT(I52:I54,C52:C54) -> 55.62972853 | K55: =L55/Densidade_H2 -> 0.21463344 | L55: =I55/H55 -> 0.017976 | M55: =SUMPRODUCT(M52:M54,O52:O54)/SUM(O52:O54) -> 10 | N55: =SUM(N52:N54) -> 30000000 | O55: =SUM(O52:O54) -> 708.61392 | P55: =SUM(P52:P54) -> 5668.91136 | Q55: =SUM(Q52:Q54) -> -7086.1392 | R55: =SUM(R52:R54) -> -39420 | S55: Os resultados neste sumário serão utilizados na simulação
F56: Alerta de alinhamento com a concepção inicial: | G56: A potência instalada é | H56: =TRUNC(H55/F24/1000-1,1) -> -0.5 | I56: =IF(H56>0,"maior que a sugestão do diagnóstico","menor que a sugestão do diagnóstico") -> menor que a sugestão do diagnóstico
C58: 4.6 Custos de capital e operacionais do eletrolisador
E59: Orçamento de Investimento | F59: Valor | G59: Moeda | H59: % do Eletrolisador | J59: Custos de Operação | L59: Valor | M59: Moeda | N59: % do Eletrolisador | O59: Periodicidade
E60: Eletrolisadores | F60: =-N55 -> -30000000 | G60: =Moeda -> BRL | H60: (-) | K60: Operação e Manutenção | L60: =N60*$F$60 -> -300000 | M60: =Moeda -> BRL | N60: 0.01 | O60: a.a.
E61: Armazenamento de H2 | F61: =H61*$F$60 -> 0 | G61: BRL | H61: 0 | K61: Outros custos | L61: =N61*$F$60 -> -300000 | M61: =Moeda -> BRL | N61: 0.01 | O61: a.a.
E62: Armazenamento de O2 | F62: 0 | G62: BRL | H62: 0 | K62: Demais custos | L62: 0 | M62: =Moeda -> BRL
E63: Importação equipamento | F63: -4500000 | G63: BRL | H63: 0.15 | K63: Troca da membrana | L63: =N63*$F$60 -> -6000000 | M63: =Moeda -> BRL | N63: 0.2 | O63: 75000 | P63: horas
E64: Preparo do local: mão de obra | F64: -2700000 | G64: BRL | H64: 0.09
E65: Preparo do local: material | F65: -3000000 | G65: BRL | H65: 0.1
E66: Engenharia e licenciamento | F66: -300000 | G66: BRL | H66: 0.01 | J66: Valores Residuais
E67: Outras contingências | F67: -4500000 | G67: BRL | H67: 0.15 | K67: Valor residual no último ano | L67: =-F60*N67 -> 8888888.889 | M67: =Moeda -> BRL | N67: =(27-21+posterga)/27 -> 0.2962962963
E68: Demais custos | F68: 0 | G68: BRL | H68: (-)
E70: Investimento no sistema de eletrólise | F70: =SUM(F60:F69) -> -45000000 | G70: BRL | H70: Cálculo do investimento do eletrolisador
E71: CAPEX do eletrolisador | F71: =F70 -> -45000000 | G71: BRL | H71: CAPEX a ser utilizado no fluxo de caixa. Neste campo pode ser inserido o valor do CAPEX que se deseja considerar na simulação
C82: Análise de sensibilidade - Esta seção deve ficar oculta para fins de se concentrar os resultados na Aba adequada. A análise de sensibilidade está construída nesta parte, pois as variáveis e a Tabela de Dados (ferramenta utilizada do Excel) devem estar contidas em uma mesma Aba
E85: VPL | F85: =E28 -> Custo do Gás Natural | G85: =G28 -> BRL/m3
E86: ='(6) Resultados'!E9 -> -54149.28088 | F86: ='(7) Análise de sensibilidade'!H16 -> 0 | G86: ='(7) Análise de sensibilidade'!I16 -> 0.8 | H86: ='(7) Análise de sensibilidade'!J16 -> 1.6 | I86: ='(7) Análise de sensibilidade'!K16 -> 2.4 | J86: ='(7) Análise de sensibilidade'!L16 -> 3.2 | K86: ='(7) Análise de sensibilidade'!M16 -> 4 | L86: ='(7) Análise de sensibilidade'!N16 -> 4.8 | M86: ='(7) Análise de sensibilidade'!O16 -> 5.6 | N86: ='(7) Análise de sensibilidade'!P16 -> 6.4 | O86: ='(7) Análise de sensibilidade'!Q16 -> 7.2
D87: =E31 -> Custo da energia elétrica | E87: ='(7) Análise de sensibilidade'!G17 -> 0 | F87: -49849.50669 | G87: -36320.58225 | H87: -22791.65782 | I87: -9262.733386 | J87: 4266.191049 | K87: 17795.11548 | L87: 31324.03992 | M87: 44852.96435 | N87: 58381.88879 | O87: 71910.81322
D88: =G31 -> BRL/MWh | E88: ='(7) Análise de sensibilidade'!G18 -> 48 | F88: -64238.38596 | G88: -50709.46153 | H88: -37180.53709 | I88: -23651.61266 | J88: -10122.68822 | K88: 3406.236209 | L88: 16935.16064 | M88: 30464.08508 | N88: 43993.00951 | O88: 57521.93395
E89: ='(7) Análise de sensibilidade'!G19 -> 96 | F89: -78627.26524 | G89: -65098.3408 | H89: -51569.41637 | I89: -38040.49193 | J89: -24511.5675 | K89: -10982.64306 | L89: 2546.28137 | M89: 16075.2058 | N89: 29604.13024 | O89: 43133.05467
E90: ='(7) Análise de sensibilidade'!G20 -> 144 | F90: -93016.14451 | G90: -79487.22007 | H90: -65958.29564 | I90: -52429.37121 | J90: -38900.44677 | K90: -25371.52234 | L90: -11842.5979 | M90: 1686.326531 | N90: 15215.25097 | O90: 28744.1754
E91: ='(7) Análise de sensibilidade'!G21 -> 192 | F91: -107405.0238 | G91: -93876.09935 | H91: -80347.17491 | I91: -66818.25048 | J91: -53289.32605 | K91: -39760.40161 | L91: -26231.47718 | M91: -12702.55274 | N91: 826.3716921 | O91: 14355.29613
E92: ='(7) Análise de sensibilidade'!G22 -> 240 | F92: -121793.9031 | G92: -108264.9786 | H92: -94736.05419 | I92: -81207.12975 | J92: -67678.20532 | K92: -54149.28088 | L92: -40620.35645 | M92: -27091.43202 | N92: -13562.50758 | O92: -33.58314696
E93: ='(7) Análise de sensibilidade'!G23 -> 288 | F93: -136182.7823 | G93: -122653.8579 | H93: -109124.9335 | I93: -95596.00903 | J93: -82067.08459 | K93: -68538.16016 | L93: -55009.23572 | M93: -41480.31129 | N93: -27951.38685 | O93: -14422.46242
E94: ='(7) Análise de sensibilidade'!G24 -> 336 | F94: -150571.6616 | G94: -137042.7372 | H94: -123513.8127 | I94: -109984.8883 | J94: -96455.96387 | K94: -82927.03943 | L94: -69398.115 | M94: -55869.19056 | N94: -42340.26613 | O94: -28811.34169
E95: ='(7) Análise de sensibilidade'!G25 -> 384 | F95: -164960.5409 | G95: -151431.6164 | H95: -137902.692 | I95: -124373.7676 | J95: -110844.8431 | K95: -97315.9187 | L95: -83786.99427 | M95: -70258.06984 | N95: -56729.1454 | O95: -43200.22097
E96: ='(7) Análise de sensibilidade'!G26 -> 432 | F96: -179349.4201 | G96: -165820.4957 | H96: -152291.5713 | I96: -138762.6468 | J96: -125233.7224 | K96: -111704.798 | L96: -98175.87354 | M96: -84646.94911 | N96: -71118.02468 | O96: -57589.10024
E98: VPL | F98: =E28 -> Custo do Gás Natural | G98: =G28 -> BRL/m3
E99: ='(6) Resultados'!E9 -> -54149.28088 | F99: ='(7) Análise de sensibilidade'!H31 -> 0 | G99: ='(7) Análise de sensibilidade'!I31 -> 0.8 | H99: ='(7) Análise de sensibilidade'!J31 -> 1.6 | I99: ='(7) Análise de sensibilidade'!K31 -> 2.4 | J99: ='(7) Análise de sensibilidade'!L31 -> 3.2 | K99: ='(7) Análise de sensibilidade'!M31 -> 4 | L99: ='(7) Análise de sensibilidade'!N31 -> 4.8 | M99: ='(7) Análise de sensibilidade'!O31 -> 5.6 | N99: ='(7) Análise de sensibilidade'!P31 -> 6.4 | O99: ='(7) Análise de sensibilidade'!Q31 -> 7.2
D100: =E47 -> Custo unitário do eletrolisador por unidade de potência instalada | E100: ='(7) Análise de sensibilidade'!G32 -> 0 | F100: -72267.71448 | G100: -58738.79005 | H100: -45209.86562 | I100: -31680.94118 | J100: -18152.01675 | K100: -4623.092313 | L100: 8905.832122 | M100: 22434.75656 | N100: 35963.68099 | O100: 49492.60542
D101: =G47 -> BRL/kW | E101: ='(7) Análise de sensibilidade'!G33 -> 1200 | F101: -82172.9522 | G101: -68644.02776 | H101: -55115.10333 | I101: -41586.1789 | J101: -28057.25446 | K101: -14528.33003 | L101: -999.4055927 | M101: 12529.51884 | N101: 26058.44328 | O101: 39587.36771
E102: ='(7) Análise de sensibilidade'!G34 -> 2400 | F102: -92078.18991 | G102: -78549.26548 | H102: -65020.34104 | I102: -51491.41661 | J102: -37962.49218 | K102: -24433.56774 | L102: -10904.64331 | M102: 2624.281127 | N102: 16153.20556 | O102: 29682.13
E103: ='(7) Análise de sensibilidade'!G35 -> 3600 | F103: -101983.4276 | G103: -88454.50319 | H103: -74925.57876 | I103: -61396.65432 | J103: -47867.72989 | K103: -34338.80546 | L103: -20809.88102 | M103: -7280.956587 | N103: 6247.967847 | O103: 19776.89228
E104: ='(7) Análise de sensibilidade'!G36 -> 4800 | F104: -111888.6653 | G104: -98359.74091 | H104: -84830.81647 | I104: -71301.89204 | J104: -57772.9676 | K104: -44244.04317 | L104: -30715.11874 | M104: -17186.1943 | N104: -3657.269867 | O104: 9871.654567
E105: ='(7) Análise de sensibilidade'!G37 -> 6000 | F105: -121793.9031 | G105: -108264.9786 | H105: -94736.05419 | I105: -81207.12975 | J105: -67678.20532 | K105: -54149.28088 | L105: -40620.35645 | M105: -27091.43202 | N105: -13562.50758 | O105: -33.58314696
E106: ='(7) Análise de sensibilidade'!G38 -> 7200 | F106: -131699.1408 | G106: -118170.2163 | H106: -104641.2919 | I106: -91112.36747 | J106: -77583.44303 | K106: -64054.5186 | L106: -50525.59416 | M106: -36996.66973 | N106: -23467.7453 | O106: -9938.820861
E107: ='(7) Análise de sensibilidade'!G39 -> 8400 | F107: -141604.3785 | G107: -128075.4541 | H107: -114546.5296 | I107: -101017.6052 | J107: -87488.68075 | K107: -73959.75631 | L107: -60430.83188 | M107: -46901.90744 | N107: -33372.98301 | O107: -19844.05858
E108: ='(7) Análise de sensibilidade'!G40 -> 9600 | F108: -151509.6162 | G108: -137980.6918 | H108: -124451.7673 | I108: -110922.8429 | J108: -97393.91846 | K108: -83864.99403 | L108: -70336.06959 | M108: -56807.14516 | N108: -43278.22072 | O108: -29749.29629
E109: ='(7) Análise de sensibilidade'!G41 -> 10800 | F109: -161414.8539 | G109: -147885.9295 | H109: -134357.005 | I109: -120828.0806 | J109: -107299.1562 | K109: -93770.23174 | L109: -80241.30731 | M109: -66712.38287 | N109: -53183.45844 | O109: -39654.534
E111: VPL | F111: =E28 -> Custo do Gás Natural | G111: =G28 -> BRL/m3
E112: ='(6) Resultados'!E9 -> -54149.28088 | F112: ='(7) Análise de sensibilidade'!H46 -> 0 | G112: ='(7) Análise de sensibilidade'!I46 -> 0.8 | H112: ='(7) Análise de sensibilidade'!J46 -> 1.6 | I112: ='(7) Análise de sensibilidade'!K46 -> 2.4 | J112: ='(7) Análise de sensibilidade'!L46 -> 3.2 | K112: ='(7) Análise de sensibilidade'!M46 -> 4 | L112: ='(7) Análise de sensibilidade'!N46 -> 4.8 | M112: ='(7) Análise de sensibilidade'!O46 -> 5.6 | N112: ='(7) Análise de sensibilidade'!P46 -> 6.4 | O112: ='(7) Análise de sensibilidade'!Q46 -> 7.2
D113: =E44 -> Taxa de Desconto | E113: ='(7) Análise de sensibilidade'!G47 -> 0 | F113: -234074.131 | G113: -200485.4403 | H113: -166896.7497 | I113: -133308.059 | J113: -99719.36838 | K113: -66130.67773 | L113: -32541.98708 | M113: 1046.703575 | N113: 34635.39423 | O113: 68224.08488
D114: =G44 -> a.a. | E114: ='(7) Análise de sensibilidade'!G48 -> 0.02 | F114: -198965.6394 | G114: -171757.6593 | H114: -144549.6791 | I114: -117341.6989 | J114: -90133.71876 | K114: -62925.73859 | L114: -35717.75841 | M114: -8509.778242 | N114: 18698.20193 | O114: 45906.1821
E115: ='(7) Análise de sensibilidade'!G49 -> 0.04 | F115: -172087.2041 | G115: -149704.6879 | H115: -127322.1717 | I115: -104939.6555 | J115: -82557.13935 | K115: -60174.62316 | L115: -37792.10696 | M115: -15409.59077 | N115: 6972.925422 | O115: 29355.44162
E116: ='(7) Análise de sensibilidade'!G50 -> 0.06 | F116: -151232.5108 | G116: -132552.1468 | H116: -113871.7829 | I116: -95191.41892 | J116: -76511.05496 | K116: -57830.691 | L116: -39150.32705 | M116: -20469.96309 | N116: -1789.599133 | O116: 16890.76482
E117: ='(7) Análise de sensibilidade'!G51 -> 0.08 | F117: -134840.4663 | G117: -119040.3483 | H117: -103240.2303 | I117: -87440.11228 | J117: -71639.99427 | K117: -55839.87627 | L117: -40039.75826 | M117: -24239.64025 | N117: -8439.522241 | O117: 7360.595768
E118: ='(7) Análise de sensibilidade'!G52 -> 0.1 | F118: -121793.9031 | G118: -108264.9786 | H118: -94736.05419 | I118: -81207.12975 | J118: -67678.20532 | K118: -54149.28088 | L118: -40620.35645 | M118: -27091.43202 | N118: -13562.50758 | O118: -33.58314696
E119: ='(7) Análise de sensibilidade'!G53 -> 0.12 | F119: -111284.4255 | G119: -99569.73556 | H119: -87855.04566 | I119: -76140.35575 | J119: -64425.66584 | K119: -52710.97594 | L119: -40996.28603 | M119: -29281.59612 | N119: -17566.90622 | O119: -5852.216311
E120: ='(7) Análise de sensibilidade'!G54 -> 0.14 | F120: -102720.698 | G120: -92473.21881 | H120: -82225.73961 | I120: -71978.26041 | J120: -61730.7812 | K120: -51483.302 | L120: -41235.8228 | M120: -30988.3436 | N120: -20740.8644 | O120: -10493.3852
E121: ='(7) Análise de sensibilidade'!G55 -> 0.16 | F121: -95665.56466 | G121: -86618.63608 | H121: -77571.70751 | I121: -68524.77893 | J121: -59477.85036 | K121: -50430.92178 | L121: -41383.9932 | M121: -32337.06463 | N121: -23290.13605 | O121: -14243.20748
E122: ='(7) Análise de sensibilidade'!G56 -> 0.18 | F122: -89792.49928 | G122: -81738.85973 | H122: -73685.22018 | I122: -65631.58064 | J122: -57577.94109 | K122: -49524.30154 | L122: -41470.662 | M122: -33417.02245 | N122: -25363.38291 | O122: -17309.74336

Sheet (5) Simulação e Fluxo de Caixa
B2: 5. Simulação da produção de H2, fluxos físicos e fluxo de Caixa
C5: 5.1 Fluxos físicos | G5: 0 | H5: 1 | I5: 2 | J5: 3 | K5: 4 | L5: 5 | M5: 6 | N5: 7 | O5: 8 | P5: 9 | Q5: 10 | R5: 11 | S5: 12 | T5: 13 | U5: 14 | V5: 15 | W5: 16 | X5: 17 | Y5: 18 | Z5: 19 | AA5: 20 | AC5: Acumulado no tempo de vida | AH5: Descrição do campo
C7: Rastreamento da substituição da membrana na tencologia PEM | AH7: =C7 -> Rastreamento da substituição da membrana na tencologia PEM
C8: Horas de uso do eletrolisador | E8: ='(4) Entrada de dados'!G36 -> h | G8: =IF(G5>=posterga,Fator_Operacional*TDT,0) -> 0 | H8: 0 | I8: 7884 | J8: 7884 | K8: 7884 | L8: 7884 | M8: 7884 | N8: 7884 | O8: 7884 | P8: 7884 | Q8: 7884 | R8: 7884 | S8: 7884 | T8: 7884 | U8: 7884 | V8: 7884 | W8: 7884 | X8: 7884 | Y8: 7884 | Z8: 7884 | AA8: 7884 | AC8: =SUM(G8:AA8) -> 149796 | AG8: =E8 -> h | AH8: =C8 -> Horas de uso do eletrolisador
C9: Horas acumuladas | E9: ='(4) Entrada de dados'!G36 -> h | G9: =G8+F9 -> 0 | H9: =H8+G9 -> 0 | I9: =I8+H9 -> 7884 | J9: =IF(I10,J8,J8+I9) -> 15768 | K9: 23652 | L9: 31536 | M9: 39420 | N9: 47304 | O9: 55188 | P9: 63072 | Q9: 70956 | R9: 78840 | S9: 7884 | T9: 15768 | U9: 23652 | V9: 31536 | W9: 39420 | X9: 47304 | Y9: 55188 | Z9: 63072 | AA9: 70956 | AC9: =SUM(G9:AA9) -> 788400 | AG9: =E9 -> h | AH9: =C9 -> Horas acumuladas
C10: Troca membrana | G10: =IF(G9>=duracao_membrana,TRUE,FALSE) -> FALSE | H10: FALSE | I10: FALSE | J10: FALSE | K10: FALSE | L10: FALSE | M10: FALSE | N10: FALSE | O10: FALSE | P10: FALSE | Q10: FALSE | R10: TRUE | S10: FALSE | T10: FALSE | U10: FALSE | V10: FALSE | W10: FALSE | X10: FALSE | Y10: FALSE | Z10: FALSE | AA10: FALSE | AC10: n/a | AG10: =E10 ->  | AH10: =C10 -> Troca membrana
C13: Produção (fluxos físicos relacionados a Receitas) | AH13: =C13 -> Produção (fluxos físicos relacionados a Receitas)
C14: Produção de Hidrogênio | E14: ton | G14: =IF(G5=posterga,Prod_H2,0) -> 0 | H14: =IF(H5=posterga,Prod_H2,0) -> 0 | I14: =IF(OR(I5=posterga,H10),Prod_H2,H14-(Degradacao_aa_EL*H14)) -> 708.61392 | J14: 701.5277808 | K14: 694.512503 | L14: 687.567378 | M14: 680.6917042 | N14: 673.8847871 | O14: 667.1459393 | P14: 660.4744799 | Q14: 653.8697351 | R14: 647.3310377 | S14: 708.61392 | T14: 701.5277808 | U14: 694.512503 | V14: 687.567378 | W14: 680.6917042 | X14: 673.8847871 | Y14: 667.1459393 | Z14: 660.4744799 | AA14: 653.8697351 | AC14: =SUM(G14:AA14) -> 12903.90749 | AG14: =E14 -> ton | AH14: =C14 -> Produção de Hidrogênio
C15: Produção de Oxigênio | E15: milhares m3 | G15: =IF(G5=posterga,Prod_O2*Volume.especifico_O2,0) -> 0 | H15: =IF(H5=posterga,Prod_O2*Volume.especifico_O2,0) -> 0 | I15: =IF(OR(I5=posterga,H10),Prod_O2*Volume.especifico_O2,H15-(Degradacao_aa_EL*H15)) -> 4257.574913 | J15: 4214.999163 | K15: 4172.849172 | L15: 4131.12068 | M15: 4089.809473 | N15: 4048.911379 | O15: 4008.422265 | P15: 3968.338042 | Q15: 3928.654662 | R15: 3889.368115 | S15: 4257.574913 | T15: 4214.999163 | U15: 4172.849172 | V15: 4131.12068 | W15: 4089.809473 | X15: 4048.911379 | Y15: 4008.422265 | Z15: 3968.338042 | AA15: 3928.654662 | AC15: =SUM(G15:AA15) -> 77530.72761 | AG15: =E15 -> milhares m3 | AH15: =C15 -> Produção de Oxigênio
C18: Cálculo de insumos evitados (fluxos físicos relacionados a Receitas) | AH18: =C18 -> Cálculo de insumos evitados (fluxos físicos relacionados a Receitas)
C19: ="Consumo corrente de "&'(4) Entrada de dados'!F14 -> Consumo corrente de Gás Natural | E19: =Unidade_fonte_substituida -> m3 | G19: =IF(G5>=posterga,-Consumo_FonteFossil,0) -> 0 | H19: 0 | I19: -10000000 | J19: -10000000 | K19: -10000000 | L19: -10000000 | M19: -10000000 | N19: -10000000 | O19: -10000000 | P19: -10000000 | Q19: -10000000 | R19: -10000000 | S19: -10000000 | T19: -10000000 | U19: -10000000 | V19: -10000000 | W19: -10000000 | X19: -10000000 | Y19: -10000000 | Z19: -10000000 | AA19: -10000000 | AC19: =SUM(G19:AA19) -> -190000000 | AG19: =E19 -> m3 | AH19: =C19 -> Consumo corrente de Gás Natural
C20: ="Consumo corrente de "&'(4) Entrada de dados'!F14 -> Consumo corrente de Gás Natural | E20: TJ | G20: =PCI_fonte_substituida*G19/10^6 -> 0 | H20: 0 | I20: -368.4384 | J20: -368.4384 | K20: -368.4384 | L20: -368.4384 | M20: -368.4384 | N20: -368.4384 | O20: -368.4384 | P20: -368.4384 | Q20: -368.4384 | R20: -368.4384 | S20: -368.4384 | T20: -368.4384 | U20: -368.4384 | V20: -368.4384 | W20: -368.4384 | X20: -368.4384 | Y20: -368.4384 | Z20: -368.4384 | AA20: -368.4384 | AC20: =SUM(G20:AA20) -> -7000.3296 | AG20: =E20 -> TJ | AH20: =C20 -> Consumo corrente de Gás Natural
C21: ="Consumo de "&'(4) Entrada de dados'!F14&" sendo substituído por H2" -> Consumo de Gás Natural sendo substituído por H2 | E21: TJ | G21: =G14*PCI_H2/10^3 -> 0 | H21: 0 | I21: 84.94863673 | J21: 84.09915036 | K21: 83.25815886 | L21: 82.42557727 | M21: 81.6013215 | N21: 80.78530828 | O21: 79.9774552 | P21: 79.17768065 | Q21: 78.38590384 | R21: 77.6020448 | S21: 84.94863673 | T21: 84.09915036 | U21: 83.25815886 | V21: 82.42557727 | W21: 81.6013215 | X21: 80.78530828 | Y21: 79.9774552 | Z21: 79.17768065 | AA21: 78.38590384 | AC21: =SUM(G21:AA21) -> 1546.92043 | AG21: =E21 -> TJ | AH21: Energia que a produção total de H2 proporciona em substituição ao gás natural
C22: ="Consumo de "&'(4) Entrada de dados'!F14&" sendo substituído por H2" -> Consumo de Gás Natural sendo substituído por H2 | E22: =Unidade_fonte_substituida -> m3 | G22: =G21/(PCI_fonte_substituida/10^6) -> 0 | H22: 0 | I22: 2305640.149 | J22: 2282583.747 | K22: 2259757.91 | L22: 2237160.33 | M22: 2214788.727 | N22: 2192640.84 | O22: 2170714.431 | P22: 2149007.287 | Q22: 2127517.214 | R22: 2106242.042 | S22: 2305640.149 | T22: 2282583.747 | U22: 2259757.91 | V22: 2237160.33 | W22: 2214788.727 | X22: 2192640.84 | Y22: 2170714.431 | Z22: 2149007.287 | AA22: 2127517.214 | AC22: =SUM(G22:AA22) -> 41985863.31 | AG22: =E22 -> m3 | AH22: Consumo de Gás Natural sendo substituído por H2
C23: ="Percentual de substituição de "&'(4) Entrada de dados'!F14&" por H2 (base energética)" -> Percentual de substituição de Gás Natural por H2 (base energética) | E23: % | G23: =IFERROR(G22/ABS(G19),"") ->  | H23: =IFERROR(H22/ABS(H19),"") ->  | I23: =IFERROR(I22/ABS(I19),"") -> 0.2305640149 | J23: =IFERROR(J22/ABS(J19),"") -> 0.2282583747 | K23: 0.225975791 | L23: 0.223716033 | M23: 0.2214788727 | N23: 0.219264084 | O23: 0.2170714431 | P23: 0.2149007287 | Q23: 0.2127517214 | R23: 0.2106242042 | S23: 0.2305640149 | T23: 0.2282583747 | U23: 0.225975791 | V23: 0.223716033 | W23: 0.2214788727 | X23: 0.219264084 | Y23: 0.2170714431 | Z23: 0.2149007287 | AA23: 0.2127517214 | AC23: =IFERROR(AC22/ABS(AC19),"") -> 0.220978228 | AG23: % | AH23: ="Esse resultado demonstra a perfomance do projeto frente ao objetivo de se substituir "&'(4) Entrada de dados'!F20*100&"% (em base energética) da fonte fóssil por H2" -> Esse resultado demonstra a perfomance do projeto frente ao objetivo de se substituir 50% (em base energética) da fonte fóssil por H2
C24: Consumo efetivo de Gás Natural na aplicação final utilizando H2 | E24: =Unidade_fonte_substituida -> m3 | G24: =G19+G22 -> 0 | H24: =H19+H22 -> 0 | I24: =I19+I22 -> -7694359.851 | J24: -7717416.253 | K24: -7740242.09 | L24: =L19+L22 -> -7762839.67 | M24: -7785211.273 | N24: -7807359.16 | O24: -7829285.569 | P24: -7850992.713 | Q24: -7872482.786 | R24: -7893757.958 | S24: -7694359.851 | T24: -7717416.253 | U24: -7740242.09 | V24: -7762839.67 | W24: -7785211.273 | X24: -7807359.16 | Y24: -7829285.569 | Z24: -7850992.713 | AA24: -7872482.786 | AC24: =SUM(G24:AA24) -> -148014136.7 | AG24: m3 | AH24: Consumo efetivo de Gás Natural na aplicação final utilizando H2
C25: Consumo efetivo de Gás Natural na aplicação final utilizando H2 | E25: TJ | G25: =G24*PCI_fonte_substituida/10^6 -> 0 | H25: 0 | I25: -283.4897633 | J25: -284.3392496 | K25: -285.1802411 | L25: =L24*PCI_fonte_substituida/10^6 -> -286.0128227 | M25: -286.8370785 | N25: -287.6530917 | O25: -288.4609448 | P25: -289.2607194 | Q25: -290.0524962 | R25: -290.8363552 | S25: -283.4897633 | T25: -284.3392496 | U25: -285.1802411 | V25: -286.0128227 | W25: -286.8370785 | X25: -287.6530917 | Y25: -288.4609448 | Z25: -289.2607194 | AA25: -290.0524962 | AC25: =SUM(G25:AA25) -> -5453.40917 | AG25: TJ | AH25: Consumo efetivo de Gás Natural na aplicação final utilizando H2
C28: Mitigação de emissões (fluxos físicios relacionados a Receitas) | AH28: =C28 -> Mitigação de emissões (fluxos físicios relacionados a Receitas)
C29: Emissão de CO2eq evitada no processo utilizando H2 | E29: ton | G29: =(-G20+G25)*fator_emissao_fonte_substituida -> 0 | H29: 0 | I29: =(-I20+I25)*fator_emissao_fonte_substituida - (I14*PCI_H2/10^3)*CO2_H2 -> 6528.302733 | J29: 6463.019705 | K29: 6398.389508 | L29: 6334.405613 | M29: 6271.061557 | N29: 6208.350942 | O29: 6146.267432 | P29: 6084.804758 | Q29: 6023.95671 | R29: 5963.717143 | S29: 6528.302733 | T29: 6463.019705 | U29: 6398.389508 | V29: 6334.405613 | W29: 6271.061557 | X29: 6208.350942 | Y29: 6146.267432 | Z29: 6084.804758 | AA29: 6023.95671 | AC29: =SUM(G29:AA29) -> 118880.8351 | AG29: =E29 -> ton | AH29: =C29 -> Emissão de CO2eq evitada no processo utilizando H2
C32: Insumos utilizados (fluxos físicos relacionados a Custos) | AH32: =C32 -> Insumos utilizados (fluxos físicos relacionados a Custos)
C33: Consumo de energia elétrica para a eletrólise | E33: MWh | G33: =IF(G5>=posterga,Consumo_de_energia_eletrica__MWh_ano,0) -> 0 | H33: 0 | I33: -39420 | J33: -39420 | K33: -39420 | L33: -39420 | M33: -39420 | N33: -39420 | O33: -39420 | P33: -39420 | Q33: -39420 | R33: -39420 | S33: -39420 | T33: -39420 | U33: -39420 | V33: -39420 | W33: -39420 | X33: -39420 | Y33: -39420 | Z33: -39420 | AA33: -39420 | AC33: =SUM(G33:AA33) -> -748980 | AG33: =E33 -> MWh | AH33: =C33 -> Consumo de energia elétrica para a eletrólise
C34: Consumo de água para a eletrólise | E34: m3 | G34: =IF(G5>=posterga,Cons_Agua,0) -> 0 | H34: 0 | I34: -7086.1392 | J34: -7086.1392 | K34: -7086.1392 | L34: -7086.1392 | M34: -7086.1392 | N34: -7086.1392 | O34: -7086.1392 | P34: -7086.1392 | Q34: -7086.1392 | R34: -7086.1392 | S34: -7086.1392 | T34: -7086.1392 | U34: -7086.1392 | V34: -7086.1392 | W34: -7086.1392 | X34: -7086.1392 | Y34: -7086.1392 | Z34: -7086.1392 | AA34: -7086.1392 | AC34: =SUM(G34:AA34) -> -134636.6448 | AG34: =E34 -> m3 | AH34: =C34 -> Consumo de água para a eletrólise
C39: 5.2 Fluxo de caixa do projeto de substituição | G39: 0 | H39: 1 | I39: 2 | J39: 3 | K39: 4 | L39: 5 | M39: 6 | N39: 7 | O39: 8 | P39: 9 | Q39: 10 | R39: 11 | S39: 12 | T39: 13 | U39: 14 | V39: 15 | W39: 16 | X39: 17 | Y39: 18 | Z39: 19 | AA39: 20 | AC39: Acumulado no tempo de vida | AH39: Descrição do campo
C41: ="Receitas (milhares de "&Moeda&" )" -> Receitas (milhares de BRL ) | AH41: =C41 -> Receitas (milhares de BRL )
C42: ="Consumo evitado de "&'(4) Entrada de dados'!F14 -> Consumo evitado de Gás Natural | G42: =(G22)*custo_fonte_substituida/10^3 -> 0 | H42: 0 | I42: 9222.560594 | J42: 9130.334988 | K42: 9039.031638 | L42: 8948.641322 | M42: 8859.154909 | N42: 8770.56336 | O42: 8682.857726 | P42: 8596.029149 | Q42: 8510.068857 | R42: 8424.968169 | S42: 9222.560594 | T42: 9130.334988 | U42: 9039.031638 | V42: 8948.641322 | W42: 8859.154909 | X42: 8770.56336 | Y42: 8682.857726 | Z42: 8596.029149 | AA42: 8510.068857 | AC42: =SUM(G42:AB42) -> 167943.4533 | AH42: Consumo evitado de Gás Natural
C43: Oxigênio | G43: =G15*preco_do_oxigenio_por_m3 -> 0 | H43: 0 | I43: 0 | J43: 0 | K43: 0 | L43: 0 | M43: 0 | N43: 0 | O43: 0 | P43: 0 | Q43: 0 | R43: 0 | S43: 0 | T43: 0 | U43: 0 | V43: 0 | W43: 0 | X43: 0 | Y43: 0 | Z43: 0 | AA43: 0 | AC43: =SUM(G43:AB43) -> 0 | AH43: Oxigênio
C44: Créditos de Carbono | G44: =preco_credito_carbono_eq*(G29)/1000 -> 0 | H44: 0 | I44: =preco_credito_carbono_eq*(I29)/1000 -> 0 | J44: 0 | K44: 0 | L44: 0 | M44: 0 | N44: 0 | O44: 0 | P44: 0 | Q44: 0 | R44: 0 | S44: 0 | T44: 0 | U44: 0 | V44: 0 | W44: 0 | X44: 0 | Y44: 0 | Z44: 0 | AA44: 0 | AC44: =SUM(G44:AB44) -> 0 | AH44: Créditos de Carbono
C45: Valor residual do eletrolisador | AA45: =valor_residual_ultimo_ano_EL/1000 -> 8888.888889 | AC45: =SUM(G45:AB45) -> 8888.888889 | AH45: Valor residual do eletrolisador
C47: ="Receita anual total (milhares de "&Moeda&" )" -> Receita anual total (milhares de BRL ) | G47: =SUM(G42:G46) -> 0 | H47: 0 | I47: 9222.560594 | J47: 9130.334988 | K47: 9039.031638 | L47: 8948.641322 | M47: 8859.154909 | N47: 8770.56336 | O47: 8682.857726 | P47: 8596.029149 | Q47: 8510.068857 | R47: 8424.968169 | S47: 9222.560594 | T47: 9130.334988 | U47: 9039.031638 | V47: 8948.641322 | W47: 8859.154909 | X47: 8770.56336 | Y47: 8682.857726 | Z47: 8596.029149 | AA47: 17398.95775 | AC47: =SUM(AC42:AC46) -> 176832.3421 | AH47: =C47 -> Receita anual total (milhares de BRL )
C49: ="Custos (milhares de "&Moeda&" )" -> Custos (milhares de BRL ) | AH49: =C49 -> Custos (milhares de BRL )
C50: Energia elétrica adquirida para uso no EL | G50: =(G33)*custo_da_energia_eletrica_por_MWh/1000 -> 0 | H50: 0 | I50: -9460.8 | J50: -9460.8 | K50: -9460.8 | L50: -9460.8 | M50: -9460.8 | N50: -9460.8 | O50: -9460.8 | P50: -9460.8 | Q50: -9460.8 | R50: -9460.8 | S50: -9460.8 | T50: -9460.8 | U50: -9460.8 | V50: -9460.8 | W50: -9460.8 | X50: -9460.8 | Y50: -9460.8 | Z50: -9460.8 | AA50: -9460.8 | AC50: =SUM(G50:AB50) -> -179755.2 | AH50: =C50 -> Energia elétrica adquirida para uso no EL
C51: Água EL | G51: =G34*custo_da_agua_por_m3/1000 -> 0 | H51: 0 | I51: -42.5168352 | J51: -42.5168352 | K51: -42.5168352 | L51: -42.5168352 | M51: -42.5168352 | N51: -42.5168352 | O51: -42.5168352 | P51: -42.5168352 | Q51: -42.5168352 | R51: -42.5168352 | S51: -42.5168352 | T51: -42.5168352 | U51: -42.5168352 | V51: -42.5168352 | W51: -42.5168352 | X51: -42.5168352 | Y51: -42.5168352 | Z51: -42.5168352 | AA51: -42.5168352 | AC51: =SUM(G51:AB51) -> -807.8198688 | AH51: =C51 -> Água EL
C52: Operação e Manutenção EL | G52: =IF(G5>=posterga,custos_OeM_EL/1000,0) -> 0 | H52: 0 | I52: -300 | J52: -300 | K52: -300 | L52: -300 | M52: -300 | N52: -300 | O52: -300 | P52: -300 | Q52: -300 | R52: -300 | S52: -300 | T52: -300 | U52: -300 | V52: -300 | W52: -300 | X52: -300 | Y52: -300 | Z52: -300 | AA52: -300 | AC52: =SUM(G52:AB52) -> -5700 | AH52: Operação e Manutenção EL
C53: Troca de Membrana EL | G53: 0 | H53: 0 | I53: =IF(I10,custo_troca_membrana/1000,0) -> 0 | J53: 0 | K53: 0 | L53: 0 | M53: 0 | N53: 0 | O53: 0 | P53: 0 | Q53: 0 | R53: -6000 | S53: 0 | T53: 0 | U53: 0 | V53: 0 | W53: 0 | X53: 0 | Y53: 0 | Z53: 0 | AA53: 0 | AC53: =SUM(G53:AB53) -> -6000 | AH53: Troca de Membrana EL
C54: Outros custos EL | G54: =IF(G5>=posterga,custos_outros_opex_EL/1000,0) -> 0 | H54: 0 | I54: -300 | J54: -300 | K54: -300 | L54: -300 | M54: -300 | N54: -300 | O54: -300 | P54: -300 | Q54: -300 | R54: -300 | S54: -300 | T54: -300 | U54: -300 | V54: -300 | W54: -300 | X54: -300 | Y54: -300 | Z54: -300 | AA54: -300 | AC54: =SUM(G54:AB54) -> -5700 | AH54: Outros custos EL
C55: Demais custos | G55: =IF(G5>=posterga,'(4) Entrada de dados'!$L$62/1000,0) -> 0 | H55: =IF(H5>=posterga,'(4) Entrada de dados'!$L$62/1000,0) -> 0 | I55: =IF(I5>=posterga,'(4) Entrada de dados'!$L$62/1000,0) -> 0 | J55: =IF(J5>=posterga,'(4) Entrada de dados'!$L$62/1000,0) -> 0 | K55: =IF(K5>=posterga,'(4) Entrada de dados'!$L$62/1000,0) -> 0 | L55: =IF(L5>=posterga,'(4) Entrada de dados'!$L$62/1000,0) -> 0 | M55: =IF(M5>=posterga,'(4) Entrada de dados'!$L$62/1000,0) -> 0 | N55: =IF(N5>=posterga,'(4) Entrada de dados'!$L$62/1000,0) -> 0 | O55: =IF(O5>=posterga,'(4) Entrada de dados'!$L$62/1000,0) -> 0 | P55: =IF(P5>=posterga,'(4) Entrada de dados'!$L$62/1000,0) -> 0 | Q55: =IF(Q5>=posterga,'(4) Entrada de dados'!$L$62/1000,0) -> 0 | R55: =IF(R5>=posterga,'(4) Entrada de dados'!$L$62/1000,0) -> 0 | S55: =IF(S5>=posterga,'(4) Entrada de dados'!$L$62/1000,0) -> 0 | T55: =IF(T5>=posterga,'(4) Entrada de dados'!$L$62/1000,0) -> 0 | U55: =IF(U5>=posterga,'(4) Entrada de dados'!$L$62/1000,0) -> 0 | V55: =IF(V5>=posterga,'(4) Entrada de dados'!$L$62/1000,0) -> 0 | W55: =IF(W5>=posterga,'(4) Entrada de dados'!$L$62/1000,0) -> 0 | X55: =IF(X5>=posterga,'(4) Entrada de dados'!$L$62/1000,0) -> 0 | Y55: =IF(Y5>=posterga,'(4) Entrada de dados'!$L$62/1000,0) -> 0 | Z55: =IF(Z5>=posterga,'(4) Entrada de dados'!$L$62/1000,0) -> 0 | AA55: =IF(AA5>=posterga,'(4) Entrada de dados'!$L$62/1000,0) -> 0 | AH55: Demais custos
C57: ="Custo anual total (milhares de "&Moeda&" )" -> Custo anual total (milhares de BRL ) | G57: =SUM(G50:G56) -> 0 | H57: =SUM(H50:H56) -> 0 | I57: =SUM(I50:I56) -> -10103.31684 | J57: =SUM(J50:J56) -> -10103.31684 | K57: -10103.31684 | L57: -10103.31684 | M57: -10103.31684 | N57: -10103.31684 | O57: -10103.31684 | P57: -10103.31684 | Q57: -10103.31684 | R57: -16103.31684 | S57: -10103.31684 | T57: -10103.31684 | U57: -10103.31684 | V57: -10103.31684 | W57: -10103.31684 | X57: -10103.31684 | Y57: -10103.31684 | Z57: -10103.31684 | AA57: -10103.31684 | AC57: =SUM(AC50:AC56) -> -197963.0199 | AH57: =C57 -> Custo anual total (milhares de BRL )
C59: ="Investimento (milhares de "&Moeda&" )" -> Investimento (milhares de BRL ) | AH59: ="Investimento (milhares de "&Moeda&" )" -> Investimento (milhares de BRL )
C60: Alocação do Investimento | E60: % | G60: ='(4) Entrada de dados'!F37 -> 0.8 | H60: ='(4) Entrada de dados'!F38 -> 0.2 | I60: ='(4) Entrada de dados'!F39 -> 0 | J60: ='(4) Entrada de dados'!F40 -> 0 | K60: ='(4) Entrada de dados'!F41 -> 0 | AC60: =SUM(G60:AB60) -> 1 | AH60: =C60 -> Alocação do Investimento
C61: CAPEX relacionado ao eletrolisador | F61: TRUE | G61: =IF($F$61,CAPEX_EL/10^3*G60,0) -> -36000 | H61: =IF($F$61,CAPEX_EL/10^3*H60,0) -> -9000 | I61: =IF($F$61,CAPEX_EL/10^3*I60,0) -> 0 | J61: =IF($F$61,CAPEX_EL/10^3*J60,0) -> 0 | K61: =IF($F$61,CAPEX_EL/10^3*K60,0) -> 0 | AC61: =SUM(G61:AB61) -> -45000 | AH61: =C61 -> CAPEX relacionado ao eletrolisador
C64: ="Investimento total (milhares de "&Moeda&" )" -> Investimento total (milhares de BRL ) | E64: =Moeda -> BRL | G64: =SUM(G61) -> -36000 | H64: =SUM(H61) -> -9000 | I64: =SUM(I61) -> 0 | J64: =SUM(J61) -> 0 | K64: =SUM(K61) -> 0 | AC64: =SUM(G64:AB64) -> -45000 | AH64: =C64 -> Investimento total (milhares de BRL )
C66: ="Fluxo de Caixa (milhares de "&Moeda&" )" -> Fluxo de Caixa (milhares de BRL ) | AH66: ="Fluxo de Caixa (milhares de "&Moeda&" )" -> Fluxo de Caixa (milhares de BRL )
C67: Fluxos de Caixa | G67: =G47+G57+G64 -> -36000 | H67: -9000 | I67: -880.7562411 | J67: -972.9818471 | K67: -1064.285197 | L67: -1154.675513 | M67: -1244.161927 | N67: -1332.753476 | O67: -1420.459109 | P67: -1507.287686 | Q67: -1593.247978 | R67: -7678.348667 | S67: -880.7562411 | T67: -972.9818471 | U67: -1064.285197 | V67: -1154.675513 | W67: -1244.161927 | X67: -1332.753476 | Y67: -1420.459109 | Z67: -1507.287686 | AA67: 7295.640911 | AC67: =AC47+AC57+AC61 -> -66130.67773 | AH67: =C67 -> Fluxos de Caixa
C68: Fluxo de Caixa Acumulado | G68: =+G67 -> -36000 | H68: =+G68+H67 -> -45000 | I68: =+H68+I67 -> -45880.75624 | J68: =+I68+J67 -> -46853.73809 | K68: =+J68+K67 -> -47918.02329 | L68: -49072.6988 | M68: -50316.86073 | N68: =+M68+N67 -> -51649.6142 | O68: -53070.07331 | P68: -54577.361 | Q68: -56170.60897 | R68: -63848.95764 | S68: -64729.71388 | T68: -65702.69573 | U68: -66766.98093 | V68: -67921.65644 | W68: -69165.81837 | X68: -70498.57184 | Y68: -71919.03095 | Z68: -73426.31864 | AA68: -66130.67773 | AF68: =AC67-AC68 -> -66130.67773 | AH68: =C68 -> Fluxo de Caixa Acumulado

Sheet (6) Resultados
B2: 6. Resultados | AF2: =SUM(AF3:AF1048576) -> 
C5: Relatório | E5: CAPEX eletrolisador | M5: Project Cash Flows | O5: =C85 -> Fluxos de Caixa | Q5: =C104 -> Fluxo de Caixa Acumulado
E7: Valor Presente Líquido (milhares BRL) | I7: Período de Payback Simples
E8: VPL do projeto de substituição | I8: Payback do projeto de substituição
E9: =G87 -> -54149.28088 | I9: =AC100 -> 20
AF15: =#REF!-AC85 -> 
E25: Taxa Interna de Retorno (% a.a.) | I25: Composição de valores no LCOH (BRL/kg)
E26: TIR do projeto de substituição | I26: Custo nivelado do H2 produzido
E27: =G88 ->  | I27: Investimento eletrolisador | K27: =-NPV(TxDesconto,G81:AA81)/NPV(TxDesconto,'(5) Simulação e Fluxo de Caixa'!G14:AA14) -> 8.500650225
I28: O&M e membrana | K28: =-(NPV(TxDesconto,'(5) Simulação e Fluxo de Caixa'!G52:AA52)+NPV(TxDesconto,'(5) Simulação e Fluxo de Caixa'!G53:AA53)+NPV(TxDesconto,'(5) Simulação e Fluxo de Caixa'!G54:AA54) + NPV(TxDesconto,'(5) Simulação e Fluxo de Caixa'!G55:AA55))/NPV(TxDesconto,'(5) Simulação e Fluxo de Caixa'!G14:AA14) -> 1.282480819
I29: Água | K29: =-NPV(TxDesconto,'(5) Simulação e Fluxo de Caixa'!G51:AA51)/NPV(TxDesconto,'(5) Simulação e Fluxo de Caixa'!G14:AA14) -> 0.06220690636
I30: Eletricidade | K30: =-NPV(TxDesconto,'(5) Simulação e Fluxo de Caixa'!G50:AA50)/NPV(TxDesconto,'(5) Simulação e Fluxo de Caixa'!G14:AA14) -> 13.84221325
I31: LCOH (BRL/kg)
I32: =SUM(K27:K30) -> 23.6875512
I34: Receita de O2 | K34: =NPV(TxDesconto,G94:AA94)/NPV(TxDesconto,'(5) Simulação e Fluxo de Caixa'!G14:AA14) -> 0
I35: Receita de CO2 | K35: =NPV(TxDesconto,G93:AA93)/NPV(TxDesconto,'(5) Simulação e Fluxo de Caixa'!G14:AA14) -> 0
I36: Receita de valor residual | K36: =NPV(TxDesconto,G95:AA95)/NPV(TxDesconto,'(5) Simulação e Fluxo de Caixa'!G14:AA14) -> 0.2542156816
I37: LCOH final(BRL/kg)
I38: =I32-K34-K35-K36 -> 23.43333552
E40: =IFERROR(IF(E27>0,"","Projeto inviável em qualquer cenário"),"Erro no cálculo da TIR - Projeto inviável") -> Erro no cálculo da TIR - Projeto inviável
E43: Emissões Evitadas (tonCO2eq/ano) | I43: ="Custo de competitividade da fonte fóssil ("&Moeda&"/"&Unidade_fonte_substituida&")" -> Custo de competitividade da fonte fóssil (BRL/m3)
E44: Média anual das emissões evitadas | I44: Preço da fonte fóssil, abaixo do qual o H2 é promissor
E45: =IFERROR(AVERAGEIF('(5) Simulação e Fluxo de Caixa'!F29:AA29,">0",'(5) Simulação e Fluxo de Caixa'!F29:AA29),0)+IFERROR(AVERAGEIF('(5) Simulação e Fluxo de Caixa'!#REF!,">0",'(5) Simulação e Fluxo de Caixa'!#REF!),0) -> 6256.886056 | I45: =G98 -> 7.201985858
C62: Fluxo de caixa previsto | G62: 0 | H62: 1 | I62: 2 | J62: 3 | K62: 4 | L62: 5 | M62: 6 | N62: 7 | O62: 8 | P62: 9 | Q62: 10 | R62: 11 | S62: 12 | T62: 13 | U62: 14 | V62: 15 | W62: 16 | X62: 17 | Y62: 18 | Z62: 19 | AA62: 20 | AC62: Lifetime
C64: Receitas
C65: Energia Evitada | AC65: =SUM(G65:AB65) -> 0
C66: Hidrogênio
C67: Outros | AC67: =SUM(G67:AB67) -> 0
C69: =C64 -> Receitas | E69: =Moeda -> BRL | H69: ='(5) Simulação e Fluxo de Caixa'!H47 -> 0 | I69: ='(5) Simulação e Fluxo de Caixa'!I47 -> 9222.560594 | J69: ='(5) Simulação e Fluxo de Caixa'!J47 -> 9130.334988 | K69: ='(5) Simulação e Fluxo de Caixa'!K47 -> 9039.031638 | L69: ='(5) Simulação e Fluxo de Caixa'!L47 -> 8948.641322 | M69: ='(5) Simulação e Fluxo de Caixa'!M47 -> 8859.154909 | N69: ='(5) Simulação e Fluxo de Caixa'!N47 -> 8770.56336 | O69: ='(5) Simulação e Fluxo de Caixa'!O47 -> 8682.857726 | P69: ='(5) Simulação e Fluxo de Caixa'!P47 -> 8596.029149 | Q69: ='(5) Simulação e Fluxo de Caixa'!Q47 -> 8510.068857 | R69: ='(5) Simulação e Fluxo de Caixa'!R47 -> 8424.968169 | S69: ='(5) Simulação e Fluxo de Caixa'!S47 -> 9222.560594 | T69: ='(5) Simulação e Fluxo de Caixa'!T47 -> 9130.334988 | U69: ='(5) Simulação e Fluxo de Caixa'!U47 -> 9039.031638 | V69: ='(5) Simulação e Fluxo de Caixa'!V47 -> 8948.641322 | W69: ='(5) Simulação e Fluxo de Caixa'!W47 -> 8859.154909 | X69: ='(5) Simulação e Fluxo de Caixa'!X47 -> 8770.56336 | Y69: ='(5) Simulação e Fluxo de Caixa'!Y47 -> 8682.857726 | Z69: ='(5) Simulação e Fluxo de Caixa'!Z47 -> 8596.029149 | AA69: ='(5) Simulação e Fluxo de Caixa'!AA47 -> 17398.95775 | AC69: =SUM(AC65:AC68) -> 0
C71: ='(5) Simulação e Fluxo de Caixa'!C49 -> Custos (milhares de BRL )
C72: Eletrolisador | E72: =Moeda -> BRL | G72: =SUM('(5) Simulação e Fluxo de Caixa'!G50:G55) -> 0 | H72: =SUM('(5) Simulação e Fluxo de Caixa'!H50:H55) -> 0 | I72: =SUM('(5) Simulação e Fluxo de Caixa'!I50:I55) -> -10103.31684 | J72: =SUM('(5) Simulação e Fluxo de Caixa'!J50:J55) -> -10103.31684 | K72: =SUM('(5) Simulação e Fluxo de Caixa'!K50:K55) -> -10103.31684 | L72: =SUM('(5) Simulação e Fluxo de Caixa'!L50:L55) -> -10103.31684 | M72: =SUM('(5) Simulação e Fluxo de Caixa'!M50:M55) -> -10103.31684 | N72: =SUM('(5) Simulação e Fluxo de Caixa'!N50:N55) -> -10103.31684 | O72: =SUM('(5) Simulação e Fluxo de Caixa'!O50:O55) -> -10103.31684 | P72: =SUM('(5) Simulação e Fluxo de Caixa'!P50:P55) -> -10103.31684 | Q72: =SUM('(5) Simulação e Fluxo de Caixa'!Q50:Q55) -> -10103.31684 | R72: =SUM('(5) Simulação e Fluxo de Caixa'!R50:R55) -> -16103.31684 | S72: =SUM('(5) Simulação e Fluxo de Caixa'!S50:S55) -> -10103.31684 | T72: =SUM('(5) Simulação e Fluxo de Caixa'!T50:T55) -> -10103.31684 | U72: =SUM('(5) Simulação e Fluxo de Caixa'!U50:U55) -> -10103.31684 | V72: =SUM('(5) Simulação e Fluxo de Caixa'!V50:V55) -> -10103.31684 | W72: =SUM('(5) Simulação e Fluxo de Caixa'!W50:W55) -> -10103.31684 | X72: =SUM('(5) Simulação e Fluxo de Caixa'!X50:X55) -> -10103.31684 | Y72: =SUM('(5) Simulação e Fluxo de Caixa'!Y50:Y55) -> -10103.31684 | Z72: =SUM('(5) Simulação e Fluxo de Caixa'!Z50:Z55) -> -10103.31684 | AA72: =SUM('(5) Simulação e Fluxo de Caixa'!AA50:AA55) -> -10103.31684 | AC72: =SUM(G72:AB72) -> -197963.0199
C74: =C71 -> Custos (milhares de BRL ) | E74: =Moeda -> BRL | G74: =SUM(G72:G72) -> 0 | H74: 0 | I74: -10103.31684 | J74: -10103.31684 | K74: -10103.31684 | L74: -10103.31684 | M74: -10103.31684 | N74: -10103.31684 | O74: -10103.31684 | P74: -10103.31684 | Q74: -10103.31684 | R74: -16103.31684 | S74: -10103.31684 | T74: -10103.31684 | U74: -10103.31684 | V74: -10103.31684 | W74: -10103.31684 | X74: -10103.31684 | Y74: -10103.31684 | Z74: -10103.31684 | AA74: -10103.31684 | AC74: =-SUM(AC72:AC73) -> 197963.0199
C76: Investimento
C77: Alocação de Investimentos | E77: % | G77: ='(5) Simulação e Fluxo de Caixa'!G60 -> 0.8 | H77: ='(5) Simulação e Fluxo de Caixa'!H60 -> 0.2 | I77: ='(5) Simulação e Fluxo de Caixa'!I60 -> 0 | J77: ='(5) Simulação e Fluxo de Caixa'!J60 -> 0 | K77: ='(5) Simulação e Fluxo de Caixa'!K60 -> 0 | L77: ='(5) Simulação e Fluxo de Caixa'!L60 -> 0 | AC77: =SUM(G77:AB77) -> 1 | AF77: =(1-AC77)*1000 -> 0
C81: =C76 -> Investimento | E81: =Moeda -> BRL | G81: ='(5) Simulação e Fluxo de Caixa'!G64 -> -36000 | H81: ='(5) Simulação e Fluxo de Caixa'!H64 -> -9000 | I81: ='(5) Simulação e Fluxo de Caixa'!I64 -> 0 | J81: ='(5) Simulação e Fluxo de Caixa'!J64 -> 0 | K81: ='(5) Simulação e Fluxo de Caixa'!K64 -> 0 | L81: ='(5) Simulação e Fluxo de Caixa'!L64 -> 0 | AC81: =SUM(G81:AB81) -> -45000
C84: Fluxos de Caixa
C85: Fluxos de Caixa | E85: =Moeda -> BRL | G85: =G69+G74+G81 -> -36000 | H85: -9000 | I85: -880.7562411 | J85: -972.9818471 | K85: -1064.285197 | L85: -1154.675513 | M85: -1244.161927 | N85: -1332.753476 | O85: -1420.459109 | P85: -1507.287686 | Q85: -1593.247978 | R85: -7678.348667 | S85: -880.7562411 | T85: -972.9818471 | U85: -1064.285197 | V85: -1154.675513 | W85: -1244.161927 | X85: -1332.753476 | Y85: -1420.459109 | Z85: -1507.287686 | AA85: 7295.640911 | AC85: =AC69+AC74+AC81 -> 152963.0199
C86: Fluxo de Caixa Acumulado | E86: =Moeda -> BRL | G86: =+G85 -> -36000 | H86: =+G86+H85 -> -45000 | I86: -45880.75624 | J86: -46853.73809 | K86: -47918.02329 | L86: -49072.6988 | M86: -50316.86073 | N86: -51649.6142 | O86: -53070.07331 | P86: -54577.361 | Q86: -56170.60897 | R86: -63848.95764 | S86: -64729.71388 | T86: -65702.69573 | U86: -66766.98093 | V86: -67921.65644 | W86: -69165.81837 | X86: -70498.57184 | Y86: -71919.03095 | Z86: -73426.31864 | AA86: -66130.67773 | AC86: =AA86 -> -66130.67773 | AF86: =AC85-AC86 -> 219093.6976
C87: Valor presente dos fluxos de caixa | E87: =Moeda -> BRL | G87: =NPV(TxDesconto,H85:AA85)+G85 -> -54149.28088
C88: TIR (taxa interna de retorno) | E88: % | G88: =IRR(G85:AA85) -> 
C89: TIRM (TIR modificada) | E89: % | G89: =MIRR(G85:AA85,TxDesconto,TxDesconto) -> -0.09626114762
C91: Cálculo do LCOH
C92: Custos associados ao H2 | E92: =Moeda -> BRL | G92: ='(5) Simulação e Fluxo de Caixa'!G57+'(5) Simulação e Fluxo de Caixa'!G64 -> -36000 | H92: ='(5) Simulação e Fluxo de Caixa'!H57+'(5) Simulação e Fluxo de Caixa'!H64 -> -9000 | I92: ='(5) Simulação e Fluxo de Caixa'!I57+'(5) Simulação e Fluxo de Caixa'!I64 -> -10103.31684 | J92: ='(5) Simulação e Fluxo de Caixa'!J57+'(5) Simulação e Fluxo de Caixa'!J64 -> -10103.31684 | K92: ='(5) Simulação e Fluxo de Caixa'!K57+'(5) Simulação e Fluxo de Caixa'!K64 -> -10103.31684 | L92: ='(5) Simulação e Fluxo de Caixa'!L57+'(5) Simulação e Fluxo de Caixa'!L64 -> -10103.31684 | M92: ='(5) Simulação e Fluxo de Caixa'!M57+'(5) Simulação e Fluxo de Caixa'!M64 -> -10103.31684 | N92: ='(5) Simulação e Fluxo de Caixa'!N57+'(5) Simulação e Fluxo de Caixa'!N64 -> -10103.31684 | O92: ='(5) Simulação e Fluxo de Caixa'!O57+'(5) Simulação e Fluxo de Caixa'!O64 -> -10103.31684 | P92: ='(5) Simulação e Fluxo de Caixa'!P57+'(5) Simulação e Fluxo de Caixa'!P64 -> -10103.31684 | Q92: ='(5) Simulação e Fluxo de Caixa'!Q57+'(5) Simulação e Fluxo de Caixa'!Q64 -> -10103.31684 | R92: ='(5) Simulação e Fluxo de Caixa'!R57+'(5) Simulação e Fluxo de Caixa'!R64 -> -16103.31684 | S92: ='(5) Simulação e Fluxo de Caixa'!S57+'(5) Simulação e Fluxo de Caixa'!S64 -> -10103.31684 | T92: ='(5) Simulação e Fluxo de Caixa'!T57+'(5) Simulação e Fluxo de Caixa'!T64 -> -10103.31684 | U92: ='(5) Simulação e Fluxo de Caixa'!U57+'(5) Simulação e Fluxo de Caixa'!U64 -> -10103.31684 | V92: ='(5) Simulação e Fluxo de Caixa'!V57+'(5) Simulação e Fluxo de Caixa'!V64 -> -10103.31684 | W92: ='(5) Simulação e Fluxo de Caixa'!W57+'(5) Simulação e Fluxo de Caixa'!W64 -> -10103.31684 | X92: ='(5) Simulação e Fluxo de Caixa'!X57+'(5) Simulação e Fluxo de Caixa'!X64 -> -10103.31684 | Y92: ='(5) Simulação e Fluxo de Caixa'!Y57+'(5) Simulação e Fluxo de Caixa'!Y64 -> -10103.31684 | Z92: ='(5) Simulação e Fluxo de Caixa'!Z57+'(5) Simulação e Fluxo de Caixa'!Z64 -> -10103.31684 | AA92: ='(5) Simulação e Fluxo de Caixa'!AA57+'(5) Simulação e Fluxo de Caixa'!AA64 -> -10103.31684
C93: Receita do crédito de CO2 | E93: =Moeda -> BRL | G93: ='(5) Simulação e Fluxo de Caixa'!G44 -> 0 | H93: ='(5) Simulação e Fluxo de Caixa'!H44 -> 0 | I93: ='(5) Simulação e Fluxo de Caixa'!I44 -> 0 | J93: ='(5) Simulação e Fluxo de Caixa'!J44 -> 0 | K93: ='(5) Simulação e Fluxo de Caixa'!K44 -> 0 | L93: ='(5) Simulação e Fluxo de Caixa'!L44 -> 0 | M93: ='(5) Simulação e Fluxo de Caixa'!M44 -> 0 | N93: ='(5) Simulação e Fluxo de Caixa'!N44 -> 0 | O93: ='(5) Simulação e Fluxo de Caixa'!O44 -> 0 | P93: ='(5) Simulação e Fluxo de Caixa'!P44 -> 0 | Q93: ='(5) Simulação e Fluxo de Caixa'!Q44 -> 0 | R93: ='(5) Simulação e Fluxo de Caixa'!R44 -> 0 | S93: ='(5) Simulação e Fluxo de Caixa'!S44 -> 0 | T93: ='(5) Simulação e Fluxo de Caixa'!T44 -> 0 | U93: ='(5) Simulação e Fluxo de Caixa'!U44 -> 0 | V93: ='(5) Simulação e Fluxo de Caixa'!V44 -> 0 | W93: ='(5) Simulação e Fluxo de Caixa'!W44 -> 0 | X93: ='(5) Simulação e Fluxo de Caixa'!X44 -> 0 | Y93: ='(5) Simulação e Fluxo de Caixa'!Y44 -> 0 | Z93: ='(5) Simulação e Fluxo de Caixa'!Z44 -> 0 | AA93: ='(5) Simulação e Fluxo de Caixa'!AA44 -> 0
C94: Receita do aproveitamento do O2 | E94: BRL | G94: ='(5) Simulação e Fluxo de Caixa'!G43 -> 0 | H94: ='(5) Simulação e Fluxo de Caixa'!H43 -> 0 | I94: ='(5) Simulação e Fluxo de Caixa'!I43 -> 0 | J94: ='(5) Simulação e Fluxo de Caixa'!J43 -> 0 | K94: ='(5) Simulação e Fluxo de Caixa'!K43 -> 0 | L94: ='(5) Simulação e Fluxo de Caixa'!L43 -> 0 | M94: ='(5) Simulação e Fluxo de Caixa'!M43 -> 0 | N94: ='(5) Simulação e Fluxo de Caixa'!N43 -> 0 | O94: ='(5) Simulação e Fluxo de Caixa'!O43 -> 0 | P94: ='(5) Simulação e Fluxo de Caixa'!P43 -> 0 | Q94: ='(5) Simulação e Fluxo de Caixa'!Q43 -> 0 | R94: ='(5) Simulação e Fluxo de Caixa'!R43 -> 0 | S94: ='(5) Simulação e Fluxo de Caixa'!S43 -> 0 | T94: ='(5) Simulação e Fluxo de Caixa'!T43 -> 0 | U94: ='(5) Simulação e Fluxo de Caixa'!U43 -> 0 | V94: ='(5) Simulação e Fluxo de Caixa'!V43 -> 0 | W94: ='(5) Simulação e Fluxo de Caixa'!W43 -> 0 | X94: ='(5) Simulação e Fluxo de Caixa'!X43 -> 0 | Y94: ='(5) Simulação e Fluxo de Caixa'!Y43 -> 0 | Z94: ='(5) Simulação e Fluxo de Caixa'!Z43 -> 0 | AA94: ='(5) Simulação e Fluxo de Caixa'!AA43 -> 0
C95: Receita de valores residuais | E95: BRL | G95: ='(5) Simulação e Fluxo de Caixa'!G45 -> 0 | H95: ='(5) Simulação e Fluxo de Caixa'!H45 -> 0 | I95: ='(5) Simulação e Fluxo de Caixa'!I45 -> 0 | J95: ='(5) Simulação e Fluxo de Caixa'!J45 -> 0 | K95: ='(5) Simulação e Fluxo de Caixa'!K45 -> 0 | L95: ='(5) Simulação e Fluxo de Caixa'!L45 -> 0 | M95: ='(5) Simulação e Fluxo de Caixa'!M45 -> 0 | N95: ='(5) Simulação e Fluxo de Caixa'!N45 -> 0 | O95: ='(5) Simulação e Fluxo de Caixa'!O45 -> 0 | P95: ='(5) Simulação e Fluxo de Caixa'!P45 -> 0 | Q95: ='(5) Simulação e Fluxo de Caixa'!Q45 -> 0 | R95: ='(5) Simulação e Fluxo de Caixa'!R45 -> 0 | S95: ='(5) Simulação e Fluxo de Caixa'!S45 -> 0 | T95: ='(5) Simulação e Fluxo de Caixa'!T45 -> 0 | U95: ='(5) Simulação e Fluxo de Caixa'!U45 -> 0 | V95: ='(5) Simulação e Fluxo de Caixa'!V45 -> 0 | W95: ='(5) Simulação e Fluxo de Caixa'!W45 -> 0 | X95: ='(5) Simulação e Fluxo de Caixa'!X45 -> 0 | Y95: ='(5) Simulação e Fluxo de Caixa'!Y45 -> 0 | Z95: ='(5) Simulação e Fluxo de Caixa'!Z45 -> 0 | AA95: ='(5) Simulação e Fluxo de Caixa'!AA45 -> 8888.888889
C96: LCOH | E96: BRL/kg | G96: =-NPV(TxDesconto,G92:AA92)/NPV(TxDesconto,'(5) Simulação e Fluxo de Caixa'!G14:AA14) -> 23.6875512
C97: LCOH considerando receitas | E97: BRL/kg | G97: =-(NPV(TxDesconto,G92:AA92)+NPV(TxDesconto,G93:AA93)+NPV(TxDesconto,G94:AA94)+NPV(TxDesconto,G95:AA95))/NPV(TxDesconto,'(5) Simulação e Fluxo de Caixa'!G14:AA14) -> 23.43333552
C98: Preço break-even da fonte fóssil | E98: =Moeda&"/"&Unidade_fonte_substituida -> BRL/m3 | G98: =-(NPV(TxDesconto,G92:AA92)+NPV(TxDesconto,G93:AA93)+NPV(TxDesconto,G94:AA94)+NPV(TxDesconto,G95:AA95))/NPV(TxDesconto,'(5) Simulação e Fluxo de Caixa'!G22:AA22)*10^3 -> 7.201985858
C99: Payback Period
C100: Cálculo de payback | E100: Anos | H100: =IF(AND(H86>0,G86<0),-G86/H85+G100,IF(H86<0,G100+1,G100)) -> 1 | I100: 2 | J100: 3 | K100: 4 | L100: 5 | M100: 6 | N100: 7 | O100: 8 | P100: 9 | Q100: 10 | R100: 11 | S100: 12 | T100: 13 | U100: 14 | V100: 15 | W100: 16 | X100: 17 | Y100: 18 | Z100: 19 | AA100: 20 | AC100: =AA100 -> 20
C102: Gráfico
C103: =C85 -> Fluxos de Caixa | E103: TRUE | G103: =IF($E103,G85,"") -> -36000 | H103: =IF($E103,H85,"") -> -9000 | I103: =IF($E103,I85,"") -> -880.7562411 | J103: =IF($E103,J85,"") -> -972.9818471 | K103: -1064.285197 | L103: -1154.675513 | M103: -1244.161927 | N103: -1332.753476 | O103: -1420.459109 | P103: -1507.287686 | Q103: -1593.247978 | R103: -7678.348667 | S103: -880.7562411 | T103: -972.9818471 | U103: -1064.285197 | V103: -1154.675513 | W103: -1244.161927 | X103: -1332.753476 | Y103: -1420.459109 | Z103: -1507.287686 | AA103: 7295.640911
C104: =C86 -> Fluxo de Caixa Acumulado | E104: TRUE | G104: =IF($E104,G86,"") -> -36000 | H104: -45000 | I104: -45880.75624 | J104: -46853.73809 | K104: -47918.02329 | L104: -49072.6988 | M104: -50316.86073 | N104: -51649.6142 | O104: -53070.07331 | P104: -54577.361 | Q104: -56170.60897 | R104: -63848.95764 | S104: -64729.71388 | T104: -65702.69573 | U104: -66766.98093 | V104: -67921.65644 | W104: -69165.81837 | X104: -70498.57184 | Y104: -71919.03095 | Z104: -73426.31864 | AA104: -66130.67773

Sheet (7) Análise de sensibilidade
D2: 7. Análise de Sensibilidade | AG2: =SUM(AG3:AG1048576) -> 0
D5: Análise de sensibilidade aplicadas sobre o VPL do projeto de substituição
D13: 7.1 Variação do VPL mantendo-se os parâmetros constantes, exceto: o custo da energia elétrica e o custo da fonte fóssil
G15: ='(4) Entrada de dados'!E85 -> VPL | H15: ='(4) Entrada de dados'!F85 -> Custo do Gás Natural | I15: ='(4) Entrada de dados'!G85 -> BRL/m3
G16: ='(4) Entrada de dados'!E86 -> -54149.28088 | H16: 0 | I16: 0.8 | J16: 1.6 | K16: 2.4 | L16: 3.2 | M16: 4 | N16: 4.8 | O16: 5.6 | P16: 6.4 | Q16: 7.2
F17: ='(4) Entrada de dados'!D87 -> Custo da energia elétrica | G17: 0 | H17: ='(4) Entrada de dados'!F87 -> -49849.50669 | I17: ='(4) Entrada de dados'!G87 -> -36320.58225 | J17: ='(4) Entrada de dados'!H87 -> -22791.65782 | K17: ='(4) Entrada de dados'!I87 -> -9262.733386 | L17: ='(4) Entrada de dados'!J87 -> 4266.191049 | M17: ='(4) Entrada de dados'!K87 -> 17795.11548 | N17: ='(4) Entrada de dados'!L87 -> 31324.03992 | O17: ='(4) Entrada de dados'!M87 -> 44852.96435 | P17: ='(4) Entrada de dados'!N87 -> 58381.88879 | Q17: ='(4) Entrada de dados'!O87 -> 71910.81322
F18: ='(4) Entrada de dados'!D88 -> BRL/MWh | G18: 48 | H18: ='(4) Entrada de dados'!F88 -> -64238.38596 | I18: ='(4) Entrada de dados'!G88 -> -50709.46153 | J18: ='(4) Entrada de dados'!H88 -> -37180.53709 | K18: ='(4) Entrada de dados'!I88 -> -23651.61266 | L18: ='(4) Entrada de dados'!J88 -> -10122.68822 | M18: ='(4) Entrada de dados'!K88 -> 3406.236209 | N18: ='(4) Entrada de dados'!L88 -> 16935.16064 | O18: ='(4) Entrada de dados'!M88 -> 30464.08508 | P18: ='(4) Entrada de dados'!N88 -> 43993.00951 | Q18: ='(4) Entrada de dados'!O88 -> 57521.93395
G19: 96 | H19: ='(4) Entrada de dados'!F89 -> -78627.26524 | I19: ='(4) Entrada de dados'!G89 -> -65098.3408 | J19: ='(4) Entrada de dados'!H89 -> -51569.41637 | K19: ='(4) Entrada de dados'!I89 -> -38040.49193 | L19: ='(4) Entrada de dados'!J89 -> -24511.5675 | M19: ='(4) Entrada de dados'!K89 -> -10982.64306 | N19: ='(4) Entrada de dados'!L89 -> 2546.28137 | O19: ='(4) Entrada de dados'!M89 -> 16075.2058 | P19: ='(4) Entrada de dados'!N89 -> 29604.13024 | Q19: ='(4) Entrada de dados'!O89 -> 43133.05467
G20: 144 | H20: ='(4) Entrada de dados'!F90 -> -93016.14451 | I20: ='(4) Entrada de dados'!G90 -> -79487.22007 | J20: ='(4) Entrada de dados'!H90 -> -65958.29564 | K20: ='(4) Entrada de dados'!I90 -> -52429.37121 | L20: ='(4) Entrada de dados'!J90 -> -38900.44677 | M20: ='(4) Entrada de dados'!K90 -> -25371.52234 | N20: ='(4) Entrada de dados'!L90 -> -11842.5979 | O20: ='(4) Entrada de dados'!M90 -> 1686.326531 | P20: ='(4) Entrada de dados'!N90 -> 15215.25097 | Q20: ='(4) Entrada de dados'!O90 -> 28744.1754
G21: 192 | H21: ='(4) Entrada de dados'!F91 -> -107405.0238 | I21: ='(4) Entrada de dados'!G91 -> -93876.09935 | J21: ='(4) Entrada de dados'!H91 -> -80347.17491 | K21: ='(4) Entrada de dados'!I91 -> -66818.25048 | L21: ='(4) Entrada de dados'!J91 -> -53289.32605 | M21: ='(4) Entrada de dados'!K91 -> -39760.40161 | N21: ='(4) Entrada de dados'!L91 -> -26231.47718 | O21: ='(4) Entrada de dados'!M91 -> -12702.55274 | P21: ='(4) Entrada de dados'!N91 -> 826.3716921 | Q21: ='(4) Entrada de dados'!O91 -> 14355.29613
G22: 240 | H22: ='(4) Entrada de dados'!F92 -> -121793.9031 | I22: ='(4) Entrada de dados'!G92 -> -108264.9786 | J22: ='(4) Entrada de dados'!H92 -> -94736.05419 | K22: ='(4) Entrada de dados'!I92 -> -81207.12975 | L22: ='(4) Entrada de dados'!J92 -> -67678.20532 | M22: ='(4) Entrada de dados'!K92 -> -54149.28088 | N22: ='(4) Entrada de dados'!L92 -> -40620.35645 | O22: ='(4) Entrada de dados'!M92 -> -27091.43202 | P22: ='(4) Entrada de dados'!N92 -> -13562.50758 | Q22: ='(4) Entrada de dados'!O92 -> -33.58314696
G23: 288 | H23: ='(4) Entrada de dados'!F93 -> -136182.7823 | I23: ='(4) Entrada de dados'!G93 -> -122653.8579 | J23: ='(4) Entrada de dados'!H93 -> -109124.9335 | K23: ='(4) Entrada de dados'!I93 -> -95596.00903 | L23: ='(4) Entrada de dados'!J93 -> -82067.08459 | M23: ='(4) Entrada de dados'!K93 -> -68538.16016 | N23: ='(4) Entrada de dados'!L93 -> -55009.23572 | O23: ='(4) Entrada de dados'!M93 -> -41480.31129 | P23: ='(4) Entrada de dados'!N93 -> -27951.38685 | Q23: ='(4) Entrada de dados'!O93 -> -14422.46242
G24: 336 | H24: ='(4) Entrada de dados'!F94 -> -150571.6616 | I24: ='(4) Entrada de dados'!G94 -> -137042.7372 | J24: ='(4) Entrada de dados'!H94 -> -123513.8127 | K24: ='(4) Entrada de dados'!I94 -> -109984.8883 | L24: ='(4) Entrada de dados'!J94 -> -96455.96387 | M24: ='(4) Entrada de dados'!K94 -> -82927.03943 | N24: ='(4) Entrada de dados'!L94 -> -69398.115 | O24: ='(4) Entrada de dados'!M94 -> -55869.19056 | P24: ='(4) Entrada de dados'!N94 -> -42340.26613 | Q24: ='(4) Entrada de dados'!O94 -> -28811.34169
G25: 384 | H25: ='(4) Entrada de dados'!F95 -> -164960.5409 | I25: ='(4) Entrada de dados'!G95 -> -151431.6164 | J25: ='(4) Entrada de dados'!H95 -> -137902.692 | K25: ='(4) Entrada de dados'!I95 -> -124373.7676 | L25: ='(4) Entrada de dados'!J95 -> -110844.8431 | M25: ='(4) Entrada de dados'!K95 -> -97315.9187 | N25: ='(4) Entrada de dados'!L95 -> -83786.99427 | O25: ='(4) Entrada de dados'!M95 -> -70258.06984 | P25: ='(4) Entrada de dados'!N95 -> -56729.1454 | Q25: ='(4) Entrada de dados'!O95 -> -43200.22097
G26: 432 | H26: ='(4) Entrada de dados'!F96 -> -179349.4201 | I26: ='(4) Entrada de dados'!G96 -> -165820.4957 | J26: ='(4) Entrada de dados'!H96 -> -152291.5713 | K26: ='(4) Entrada de dados'!I96 -> -138762.6468 | L26: ='(4) Entrada de dados'!J96 -> -125233.7224 | M26: ='(4) Entrada de dados'!K96 -> -111704.798 | N26: ='(4) Entrada de dados'!L96 -> -98175.87354 | O26: ='(4) Entrada de dados'!M96 -> -84646.94911 | P26: ='(4) Entrada de dados'!N96 -> -71118.02468 | Q26: ='(4) Entrada de dados'!O96 -> -57589.10024
D28: 7.2 Variação do VPL mantendo-se os parâmetros constantes, exceto: o custo unitário do eletrolisador e o custo da fonte fóssil
G30: ='(4) Entrada de dados'!E85 -> VPL | H30: ='(4) Entrada de dados'!F85 -> Custo do Gás Natural | I30: ='(4) Entrada de dados'!G85 -> BRL/m3
G31: ='(4) Entrada de dados'!E99 -> -54149.28088 | H31: 0 | I31: 0.8 | J31: 1.6 | K31: 2.4 | L31: 3.2 | M31: 4 | N31: 4.8 | O31: 5.6 | P31: 6.4 | Q31: 7.2
F32: ='(4) Entrada de dados'!D100 -> Custo unitário do eletrolisador por unidade de potência instalada | G32: 0 | H32: ='(4) Entrada de dados'!F100 -> -72267.71448 | I32: ='(4) Entrada de dados'!G100 -> -58738.79005 | J32: ='(4) Entrada de dados'!H100 -> -45209.86562 | K32: ='(4) Entrada de dados'!I100 -> -31680.94118 | L32: ='(4) Entrada de dados'!J100 -> -18152.01675 | M32: ='(4) Entrada de dados'!K100 -> -4623.092313 | N32: ='(4) Entrada de dados'!L100 -> 8905.832122 | O32: ='(4) Entrada de dados'!M100 -> 22434.75656 | P32: ='(4) Entrada de dados'!N100 -> 35963.68099 | Q32: ='(4) Entrada de dados'!O100 -> 49492.60542
F33: ='(4) Entrada de dados'!D101 -> BRL/kW | G33: 1200 | H33: ='(4) Entrada de dados'!F101 -> -82172.9522 | I33: ='(4) Entrada de dados'!G101 -> -68644.02776 | J33: ='(4) Entrada de dados'!H101 -> -55115.10333 | K33: ='(4) Entrada de dados'!I101 -> -41586.1789 | L33: ='(4) Entrada de dados'!J101 -> -28057.25446 | M33: ='(4) Entrada de dados'!K101 -> -14528.33003 | N33: ='(4) Entrada de dados'!L101 -> -999.4055927 | O33: ='(4) Entrada de dados'!M101 -> 12529.51884 | P33: ='(4) Entrada de dados'!N101 -> 26058.44328 | Q33: ='(4) Entrada de dados'!O101 -> 39587.36771
G34: 2400 | H34: ='(4) Entrada de dados'!F102 -> -92078.18991 | I34: ='(4) Entrada de dados'!G102 -> -78549.26548 | J34: ='(4) Entrada de dados'!H102 -> -65020.34104 | K34: ='(4) Entrada de dados'!I102 -> -51491.41661 | L34: ='(4) Entrada de dados'!J102 -> -37962.49218 | M34: ='(4) Entrada de dados'!K102 -> -24433.56774 | N34: ='(4) Entrada de dados'!L102 -> -10904.64331 | O34: ='(4) Entrada de dados'!M102 -> 2624.281127 | P34: ='(4) Entrada de dados'!N102 -> 16153.20556 | Q34: ='(4) Entrada de dados'!O102 -> 29682.13
G35: 3600 | H35: ='(4) Entrada de dados'!F103 -> -101983.4276 | I35: ='(4) Entrada de dados'!G103 -> -88454.50319 | J35: ='(4) Entrada de dados'!H103 -> -74925.57876 | K35: ='(4) Entrada de dados'!I103 -> -61396.65432 | L35: ='(4) Entrada de dados'!J103 -> -47867.72989 | M35: ='(4) Entrada de dados'!K103 -> -34338.80546 | N35: ='(4) Entrada de dados'!L103 -> -20809.88102 | O35: ='(4) Entrada de dados'!M103 -> -7280.956587 | P35: ='(4) Entrada de dados'!N103 -> 6247.967847 | Q35: ='(4) Entrada de dados'!O103 -> 19776.89228
G36: 4800 | H36: ='(4) Entrada de dados'!F104 -> -111888.6653 | I36: ='(4) Entrada de dados'!G104 -> -98359.74091 | J36: ='(4) Entrada de dados'!H104 -> -84830.81647 | K36: ='(4) Entrada de dados'!I104 -> -71301.89204 | L36: ='(4) Entrada de dados'!J104 -> -57772.9676 | M36: ='(4) Entrada de dados'!K104 -> -44244.04317 | N36: ='(4) Entrada de dados'!L104 -> -30715.11874 | O36: ='(4) Entrada de dados'!M104 -> -17186.1943 | P36: ='(4) Entrada de dados'!N104 -> -3657.269867 | Q36: ='(4) Entrada de dados'!O104 -> 9871.654567
G37: 6000 | H37: ='(4) Entrada de dados'!F105 -> -121793.9031 | I37: ='(4) Entrada de dados'!G105 -> -108264.9786 | J37: ='(4) Entrada de dados'!H105 -> -94736.05419 | K37: ='(4) Entrada de dados'!I105 -> -81207.12975 | L37: ='(4) Entrada de dados'!J105 -> -67678.20532 | M37: ='(4) Entrada de dados'!K105 -> -54149.28088 | N37: ='(4) Entrada de dados'!L105 -> -40620.35645 | O37: ='(4) Entrada de dados'!M105 -> -27091.43202 | P37: ='(4) Entrada de dados'!N105 -> -13562.50758 | Q37: ='(4) Entrada de dados'!O105 -> -33.58314696
G38: 7200 | H38: ='(4) Entrada de dados'!F106 -> -131699.1408 | I38: ='(4) Entrada de dados'!G106 -> -118170.2163 | J38: ='(4) Entrada de dados'!H106 -> -104641.2919 | K38: ='(4) Entrada de dados'!I106 -> -91112.36747 | L38: ='(4) Entrada de dados'!J106 -> -77583.44303 | M38: ='(4) Entrada de dados'!K106 -> -64054.5186 | N38: ='(4) Entrada de dados'!L106 -> -50525.59416 | O38: ='(4) Entrada de dados'!M106 -> -36996.66973 | P38: ='(4) Entrada de dados'!N106 -> -23467.7453 | Q38: ='(4) Entrada de dados'!O106 -> -9938.820861
G39: 8400 | H39: ='(4) Entrada de dados'!F107 -> -141604.3785 | I39: ='(4) Entrada de dados'!G107 -> -128075.4541 | J39: ='(4) Entrada de dados'!H107 -> -114546.5296 | K39: ='(4) Entrada de dados'!I107 -> -101017.6052 | L39: ='(4) Entrada de dados'!J107 -> -87488.68075 | M39: ='(4) Entrada de dados'!K107 -> -73959.75631 | N39: ='(4) Entrada de dados'!L107 -> -60430.83188 | O39: ='(4) Entrada de dados'!M107 -> -46901.90744 | P39: ='(4) Entrada de dados'!N107 -> -33372.98301 | Q39: ='(4) Entrada de dados'!O107 -> -19844.05858
G40: 9600 | H40: ='(4) Entrada de dados'!F108 -> -151509.6162 | I40: ='(4) Entrada de dados'!G108 -> -137980.6918 | J40: ='(4) Entrada de dados'!H108 -> -124451.7673 | K40: ='(4) Entrada de dados'!I108 -> -110922.8429 | L40: ='(4) Entrada de dados'!J108 -> -97393.91846 | M40: ='(4) Entrada de dados'!K108 -> -83864.99403 | N40: ='(4) Entrada de dados'!L108 -> -70336.06959 | O40: ='(4) Entrada de dados'!M108 -> -56807.14516 | P40: ='(4) Entrada de dados'!N108 -> -43278.22072 | Q40: ='(4) Entrada de dados'!O108 -> -29749.29629
G41: 10800 | H41: ='(4) Entrada de dados'!F109 -> -161414.8539 | I41: ='(4) Entrada de dados'!G109 -> -147885.9295 | J41: ='(4) Entrada de dados'!H109 -> -134357.005 | K41: ='(4) Entrada de dados'!I109 -> -120828.0806 | L41: ='(4) Entrada de dados'!J109 -> -107299.1562 | M41: ='(4) Entrada de dados'!K109 -> -93770.23174 | N41: ='(4) Entrada de dados'!L109 -> -80241.30731 | O41: ='(4) Entrada de dados'!M109 -> -66712.38287 | P41: ='(4) Entrada de dados'!N109 -> -53183.45844 | Q41: ='(4) Entrada de dados'!O109 -> -39654.534
D43: 7.3 Variação do VPL mantendo-se os parâmetros constantes, exceto: o custo da energia elétrica e o custo da fonte fóssil
G45: ='(4) Entrada de dados'!E85 -> VPL | H45: ='(4) Entrada de dados'!F85 -> Custo do Gás Natural | I45: ='(4) Entrada de dados'!G85 -> BRL/m3
G46: ='(4) Entrada de dados'!E112 -> -54149.28088 | H46: 0 | I46: 0.8 | J46: 1.6 | K46: 2.4 | L46: 3.2 | M46: 4 | N46: 4.8 | O46: 5.6 | P46: 6.4 | Q46: 7.2
F47: ='(4) Entrada de dados'!D113 -> Taxa de Desconto | G47: 0 | H47: ='(4) Entrada de dados'!F113 -> -234074.131 | I47: ='(4) Entrada de dados'!G113 -> -200485.4403 | J47: ='(4) Entrada de dados'!H113 -> -166896.7497 | K47: ='(4) Entrada de dados'!I113 -> -133308.059 | L47: ='(4) Entrada de dados'!J113 -> -99719.36838 | M47: ='(4) Entrada de dados'!K113 -> -66130.67773 | N47: ='(4) Entrada de dados'!L113 -> -32541.98708 | O47: ='(4) Entrada de dados'!M113 -> 1046.703575 | P47: ='(4) Entrada de dados'!N113 -> 34635.39423 | Q47: ='(4) Entrada de dados'!O113 -> 68224.08488
F48: ='(4) Entrada de dados'!D114 -> a.a. | G48: 0.02 | H48: ='(4) Entrada de dados'!F114 -> -198965.6394 | I48: ='(4) Entrada de dados'!G114 -> -171757.6593 | J48: ='(4) Entrada de dados'!H114 -> -144549.6791 | K48: ='(4) Entrada de dados'!I114 -> -117341.6989 | L48: ='(4) Entrada de dados'!J114 -> -90133.71876 | M48: ='(4) Entrada de dados'!K114 -> -62925.73859 | N48: ='(4) Entrada de dados'!L114 -> -35717.75841 | O48: ='(4) Entrada de dados'!M114 -> -8509.778242 | P48: ='(4) Entrada de dados'!N114 -> 18698.20193 | Q48: ='(4) Entrada de dados'!O114 -> 45906.1821
G49: 0.04 | H49: ='(4) Entrada de dados'!F115 -> -172087.2041 | I49: ='(4) Entrada de dados'!G115 -> -149704.6879 | J49: ='(4) Entrada de dados'!H115 -> -127322.1717 | K49: ='(4) Entrada de dados'!I115 -> -104939.6555 | L49: ='(4) Entrada de dados'!J115 -> -82557.13935 | M49: ='(4) Entrada de dados'!K115 -> -60174.62316 | N49: ='(4) Entrada de dados'!L115 -> -37792.10696 | O49: ='(4) Entrada de dados'!M115 -> -15409.59077 | P49: ='(4) Entrada de dados'!N115 -> 6972.925422 | Q49: ='(4) Entrada de dados'!O115 -> 29355.44162
G50: 0.06 | H50: ='(4) Entrada de dados'!F116 -> -151232.5108 | I50: ='(4) Entrada de dados'!G116 -> -132552.1468 | J50: ='(4) Entrada de dados'!H116 -> -113871.7829 | K50: ='(4) Entrada de dados'!I116 -> -95191.41892 | L50: ='(4) Entrada de dados'!J116 -> -76511.05496 | M50: ='(4) Entrada de dados'!K116 -> -57830.691 | N50: ='(4) Entrada de dados'!L116 -> -39150.32705 | O50: ='(4) Entrada de dados'!M116 -> -20469.96309 | P50: ='(4) Entrada de dados'!N116 -> -1789.599133 | Q50: ='(4) Entrada de dados'!O116 -> 16890.76482
G51: 0.08 | H51: ='(4) Entrada de dados'!F117 -> -134840.4663 | I51: ='(4) Entrada de dados'!G117 -> -119040.3483 | J51: ='(4) Entrada de dados'!H117 -> -103240.2303 | K51: ='(4) Entrada de dados'!I117 -> -87440.11228 | L51: ='(4) Entrada de dados'!J117 -> -71639.99427 | M51: ='(4) Entrada de dados'!K117 -> -55839.87627 | N51: ='(4) Entrada de dados'!L117 -> -40039.75826 | O51: ='(4) Entrada de dados'!M117 -> -24239.64025 | P51: ='(4) Entrada de dados'!N117 -> -8439.522241 | Q51: ='(4) Entrada de dados'!O117 -> 7360.595768
G52: 0.1 | H52: ='(4) Entrada de dados'!F118 -> -121793.9031 | I52: ='(4) Entrada de dados'!G118 -> -108264.9786 | J52: ='(4) Entrada de dados'!H118 -> -94736.05419 | K52: ='(4) Entrada de dados'!I118 -> -81207.12975 | L52: ='(4) Entrada de dados'!J118 -> -67678.20532 | M52: ='(4) Entrada de dados'!K118 -> -54149.28088 | N52: ='(4) Entrada de dados'!L118 -> -40620.35645 | O52: ='(4) Entrada de dados'!M118 -> -27091.43202 | P52: ='(4) Entrada de dados'!N118 -> -13562.50758 | Q52: ='(4) Entrada de dados'!O118 -> -33.58314696
G53: 0.12 | H53: ='(4) Entrada de dados'!F119 -> -111284.4255 | I53: ='(4) Entrada de dados'!G119 -> -99569.73556 | J53: ='(4) Entrada de dados'!H119 -> -87855.04566 | K53: ='(4) Entrada de dados'!I119 -> -76140.35575 | L53: ='(4) Entrada de dados'!J119 -> -64425.66584 | M53: ='(4) Entrada de dados'!K119 -> -52710.97594 | N53: ='(4) Entrada de dados'!L119 -> -40996.28603 | O53: ='(4) Entrada de dados'!M119 -> -29281.59612 | P53: ='(4) Entrada de dados'!N119 -> -17566.90622 | Q53: ='(4) Entrada de dados'!O119 -> -5852.216311
G54: 0.14 | H54: ='(4) Entrada de dados'!F120 -> -102720.698 | I54: ='(4) Entrada de dados'!G120 -> -92473.21881 | J54: ='(4) Entrada de dados'!H120 -> -82225.73961 | K54: ='(4) Entrada de dados'!I120 -> -71978.26041 | L54: ='(4) Entrada de dados'!J120 -> -61730.7812 | M54: ='(4) Entrada de dados'!K120 -> -51483.302 | N54: ='(4) Entrada de dados'!L120 -> -41235.8228 | O54: ='(4) Entrada de dados'!M120 -> -30988.3436 | P54: ='(4) Entrada de dados'!N120 -> -20740.8644 | Q54: ='(4) Entrada de dados'!O120 -> -10493.3852
G55: 0.16 | H55: ='(4) Entrada de dados'!F121 -> -95665.56466 | I55: ='(4) Entrada de dados'!G121 -> -86618.63608 | J55: ='(4) Entrada de dados'!H121 -> -77571.70751 | K55: ='(4) Entrada de dados'!I121 -> -68524.77893 | L55: ='(4) Entrada de dados'!J121 -> -59477.85036 | M55: ='(4) Entrada de dados'!K121 -> -50430.92178 | N55: ='(4) Entrada de dados'!L121 -> -41383.9932 | O55: ='(4) Entrada de dados'!M121 -> -32337.06463 | P55: ='(4) Entrada de dados'!N121 -> -23290.13605 | Q55: ='(4) Entrada de dados'!O121 -> -14243.20748
G56: 0.18 | H56: ='(4) Entrada de dados'!F122 -> -89792.49928 | I56: ='(4) Entrada de dados'!G122 -> -81738.85973 | J56: ='(4) Entrada de dados'!H122 -> -73685.22018 | K56: ='(4) Entrada de dados'!I122 -> -65631.58064 | L56: ='(4) Entrada de dados'!J122 -> -57577.94109 | M56: ='(4) Entrada de dados'!K122 -> -49524.30154 | N56: ='(4) Entrada de dados'!L122 -> -41470.662 | O56: ='(4) Entrada de dados'!M122 -> -33417.02245 | P56: ='(4) Entrada de dados'!N122 -> -25363.38291 | Q56: ='(4) Entrada de dados'!O122 -> -17309.74336
